{"text_format":"1","workbook":"xlsx","n_sheets":4,"sheets":["Cerere de Finantare","Anexa 3","A8-Detalii privind terenul ","Asociati"],"not_rendered":{"charts":0,"images":1,"macros":1,"external_links":0,"defined_names":0,"comments":0,"pivot_tables":0},"unopened":[],"bounds":{"document_bytes":16777216,"sheet_cells":100000,"rows_first":2000,"rows_last":500,"rows_between":2000,"halvings":0,"cell_chars":16384,"cell_head_chars":4096},"cells_cut":0,"cells_raw":0,"read":"whole","date_system":"1900"}

{"sheet":"Cerere de Finantare","index":0,"n_rows":604,"n_cols":58,"rows_kept":604,"cut":false,"hidden":false,"merged":[[200,1,200,3],[200,4,200,58],[201,1,201,3],[201,4,201,6],[201,7,201,9],[201,10,201,58],[202,1,202,3],[202,4,202,6],[202,7,202,9],[202,10,202,58],[203,1,203,3],[203,4,203,6],[203,7,203,9],[203,10,203,58],[518,0,518,8],[518,10,518,23],[512,38,512,47],[512,48,512,60],[513,0,513,8],[513,9,513,29],[513,30,513,37],[513,38,513,47],[513,48,513,60],[506,0,506,8],[506,9,506,29],[506,30,506,37],[506,38,506,47],[506,48,506,60],[507,0,507,8],[507,9,507,29],[507,30,507,37],[520,49,520,57],[520,24,520,32],[522,0,530,60],[129,5,129,41],[514,0,514,8],[514,9,514,29],[514,30,514,37],[514,38,514,47],[514,48,514,60],[515,0,515,8],[515,9,515,29],[515,30,515,37],[515,38,515,47],[515,48,515,60],[516,0,516,8],[516,9,516,29],[516,30,516,37],[516,38,516,47],[516,48,516,60],[510,0,510,8],[510,9,510,29],[510,30,510,37],[510,38,510,47],[510,48,510,60],[511,0,511,8],[511,9,511,29],[511,30,511,37],[511,38,511,47],[511,48,511,60],[512,0,512,8],[512,9,512,29],[512,30,512,37],[507,38,507,47],[507,48,507,60],[508,0,508,8],[508,9,508,29],[508,30,508,37],[508,38,508,47],[508,48,508,60],[509,0,509,8],[509,9,509,29],[509,30,509,37],[509,38,509,47],[509,48,509,60],[502,0,502,8],[502,9,502,29],[502,30,502,37],[502,38,502,47],[502,48,502,60],[503,0,503,8],[503,9,503,29],[503,30,503,37],[503,38,503,47],[503,48,503,60],[504,0,504,8],[504,9,504,29],[504,30,504,37],[504,38,504,47],[504,48,504,60],[505,0,505,8],[505,9,505,29],[505,30,505,37],[505,38,505,47],[505,48,505,60],[497,0,497,8],[497,9,497,29],[497,30,497,37],[497,38,497,47],[497,48,497,60],[498,0,498,8],[498,9,498,29],[498,30,498,37],[498,38,498,47],[498,48,498,60],[500,0,500,8],[500,9,500,29],[500,30,500,37],[500,38,500,47],[500,48,500,60],[501,0,501,8],[501,9,501,29],[501,30,501,37],[501,38,501,47],[501,48,501,60],[499,0,499,8],[499,9,499,29],[499,38,499,47],[499,48,499,60],[499,30,499,37],[493,0,493,8],[493,9,493,29],[493,30,493,37],[493,38,493,47],[493,48,493,60],[494,0,494,8],[494,9,494,29],[494,30,494,37],[494,38,494,47],[494,48,494,60],[495,0,495,8],[495,9,495,29],[495,30,495,37],[495,38,495,47],[495,48,495,60],[496,0,496,8],[496,9,496,29],[496,30,496,37],[496,38,496,47],[496,48,496,60],[489,0,489,8],[489,9,489,29],[489,30,489,37],[489,38,489,47],[489,48,489,60],[490,0,490,8],[490,9,490,29],[490,30,490,37],[490,38,490,47],[490,48,490,60],[491,0,491,8],[491,9,491,29],[491,30,491,37],[491,38,491,47],[491,48,491,60],[492,0,492,8],[492,9,492,29],[492,30,492,37],[492,38,492,47],[492,48,492,60],[404,38,404,47],[404,48,404,60],[418,30,418,37],[418,38,418,47],[418,48,418,60],[405,30,405,37],[405,38,405,47],[405,48,405,60],[406,30,406,37],[406,38,406,47],[406,48,406,60],[407,30,407,37],[407,38,407,47],[407,48,407,60],[408,30,408,37],[408,38,408,47],[408,48,408,60],[412,30,412,37],[412,38,412,47],[412,48,412,60],[413,30,413,37],[413,38,413,47],[413,48,413,60],[414,30,414,37],[414,38,414,47],[414,48,414,60],[415,30,415,37],[415,38,415,47],[415,48,415,60],[410,38,410,47],[392,30,392,34],[392,35,392,41],[392,42,392,49],[392,50,392,54],[392,55,392,60],[399,0,399,60],[400,0,400,60],[401,30,401,37],[401,38,401,47],[401,48,401,60],[393,55,393,60],[394,30,394,34],[394,35,394,41],[394,42,394,49],[394,50,394,54],[394,55,394,60],[391,30,391,34],[391,35,391,41],[391,42,391,49],[397,30,397,34],[397,35,397,41],[397,42,397,49],[397,50,397,54],[397,55,397,60],[398,0,398,29],[398,30,398,34],[398,35,398,41],[398,42,398,49],[398,50,398,54],[393,42,393,49],[393,50,393,54],[391,50,391,54],[387,30,387,34],[387,35,387,41],[387,42,387,49],[387,50,387,54],[387,55,387,60],[388,0,388,29],[388,30,388,34],[388,35,388,41],[388,42,388,49],[388,50,388,54],[388,55,388,60],[389,30,389,34],[389,35,389,41],[389,42,389,49],[389,50,389,54],[389,55,389,60],[389,0,389,29],[335,44,335,52],[335,53,335,56],[335,57,335,59],[336,19,336,37],[336,38,336,43],[336,44,336,52],[336,53,336,56],[336,57,336,59],[337,19,337,37],[337,38,337,43],[337,44,337,52],[337,53,337,56],[337,57,337,59],[338,19,338,37],[338,38,338,43],[338,44,338,52],[338,53,338,56],[252,28,252,35],[253,28,254,35],[256,1,256,32],[257,3,257,10],[257,24,257,49],[258,3,258,16],[258,24,258,49],[261,4,261,15],[261,18,261,20],[261,21,261,26],[261,28,261,35],[261,37,261,48],[261,51,261,58],[230,1,230,13],[231,1,231,13],[230,20,230,32],[231,20,231,32],[230,36,230,58],[231,36,231,58],[252,37,252,48],[253,37,254,48],[252,51,252,58],[253,51,254,58],[248,3,248,10],[249,3,249,16],[248,24,248,49],[252,4,252,15],[253,4,253,6],[253,7,253,9],[253,10,253,15],[254,4,254,6],[227,11,227,32],[226,11,226,32],[225,22,225,40],[227,34,227,37],[226,34,226,37],[227,39,227,42],[226,39,226,42],[221,41,221,58],[226,44,226,47],[227,44,227,47],[226,49,226,51],[227,49,227,51],[226,53,226,56],[227,53,227,56],[224,1,224,19],[224,22,224,39],[224,42,224,58],[225,1,225,19],[225,42,225,58],[226,1,226,9],[227,1,227,9],[197,1,197,3],[197,4,197,58],[198,1,198,3],[198,4,198,6],[198,7,198,9],[198,10,198,58],[199,1,199,3],[199,4,199,6],[199,7,199,9],[199,10,199,58],[193,1,193,3],[193,4,193,58],[194,0,194,9],[194,10,194,58],[195,0,195,9],[195,10,195,58],[196,0,196,9],[196,10,196,58],[188,1,188,3],[188,4,188,6],[188,7,188,58],[189,1,189,3],[189,4,189,6],[189,7,189,9],[189,10,189,58],[190,1,190,3],[190,4,190,6],[190,7,190,9],[190,10,190,58],[191,1,191,3],[191,4,191,6],[191,7,191,9],[191,10,191,58],[192,1,192,3],[192,4,192,58],[184,1,184,3],[184,4,184,6],[184,7,184,58],[183,4,183,58],[185,1,185,3],[185,4,185,6],[185,7,185,9],[185,10,185,58],[186,1,186,3],[186,4,186,6],[186,7,186,9],[186,10,186,58],[187,1,187,3],[187,4,187,6],[187,7,187,9],[187,10,187,58],[178,20,178,30],[180,4,180,58],[180,1,180,3],[181,4,181,6],[181,1,181,3],[181,7,181,58],[182,1,182,3],[182,4,182,6],[182,7,182,58],[183,1,183,3],[164,2,164,58],[165,1,165,14],[166,1,166,14],[165,16,165,34],[166,16,166,34],[165,36,165,58],[166,36,166,58],[167,1,167,14],[168,3,168,14],[169,3,169,14],[170,3,170,49],[168,16,168,21],[169,16,169,21],[168,23,168,29],[169,23,169,29],[168,32,168,40],[169,32,169,40],[168,43,168,50],[169,43,169,50],[103,7,103,27],[111,5,111,16],[113,5,113,16],[114,5,114,8],[114,9,114,53],[116,5,116,16],[105,7,105,22],[107,7,107,23],[108,7,108,23],[109,7,109,23],[110,5,110,16],[124,7,124,23],[152,0,152,8],[151,9,151,58],[152,9,152,58],[153,0,153,8],[153,9,153,58],[148,5,148,57],[149,5,149,57],[150,5,150,57],[151,0,151,8],[131,5,131,8],[131,9,131,53],[145,6,145,36],[146,6,146,36],[106,7,106,23],[104,5,104,16],[386,30,386,34],[386,35,386,41],[386,42,386,49],[125,7,125,23],[126,7,126,23],[127,5,127,16],[128,5,128,16],[119,7,119,23],[130,5,130,16],[117,7,117,23],[118,7,118,23],[120,7,120,27],[121,5,121,16],[122,7,122,22],[123,7,123,23],[154,0,154,8],[155,0,155,8],[156,0,156,8],[154,9,154,58],[155,9,155,58],[156,9,156,58],[171,1,171,58],[172,1,172,24],[173,1,173,24],[172,26,172,41],[173,26,173,41],[172,43,172,58],[173,43,173,58],[175,1,175,38],[177,2,177,58],[157,5,157,57],[158,2,162,58],[379,35,379,41],[380,0,380,29],[380,30,380,34],[380,35,380,41],[380,42,380,49],[380,50,380,54],[380,55,380,60],[385,0,385,29],[385,30,385,34],[385,35,385,41],[385,42,385,49],[385,50,385,54],[385,55,385,60],[384,0,384,29],[384,30,384,34],[384,35,384,41],[384,42,384,49],[384,50,384,54],[384,55,384,60],[383,0,383,29],[383,30,383,34],[383,35,383,41],[383,42,383,49],[383,50,383,54],[383,55,383,60],[532,0,532,60],[533,0,533,60],[535,0,535,60],[543,3,543,60],[541,3,541,60],[542,3,542,60],[540,3,540,60],[539,0,539,60],[534,1,534,34],[536,1,538,59],[563,1,563,31],[562,41,562,52],[563,41,563,50],[562,0,562,30],[249,24,249,49],[217,48,217,55],[398,55,398,60],[395,30,395,34],[395,35,395,41],[395,42,395,49],[395,50,395,54],[395,55,395,60],[396,30,396,34],[396,35,396,41],[396,42,396,49],[396,50,396,54],[396,55,396,60],[393,30,393,34],[393,35,393,41],[552,0,552,2],[553,0,553,2],[554,0,554,2],[391,55,391,60],[381,30,381,34],[381,35,381,41],[381,42,381,49],[381,50,381,54],[381,55,381,60],[382,30,382,34],[382,35,382,41],[382,42,382,49],[382,50,382,54],[382,55,382,60],[377,30,377,34],[377,35,377,41],[377,42,377,49],[377,50,377,54],[377,55,377,60],[378,30,378,34],[378,35,378,41],[378,42,378,49],[378,50,378,54],[378,55,378,60],[379,42,379,49],[379,50,379,54],[379,55,379,60],[386,50,386,54],[386,55,386,60],[390,30,390,34],[390,35,390,41],[390,42,390,49],[390,50,390,54],[390,55,390,60],[379,30,379,34],[375,30,375,34],[375,35,375,41],[375,42,375,49],[375,50,375,54],[375,55,375,60],[376,30,376,34],[376,35,376,41],[376,42,376,49],[376,50,376,54],[376,55,376,60],[373,30,373,34],[373,35,373,41],[373,42,373,49],[373,50,373,54],[373,55,373,60],[374,30,374,34],[374,35,374,41],[374,42,374,49],[374,50,374,54],[374,55,374,60],[371,35,371,41],[371,42,371,49],[371,50,371,54],[371,55,371,60],[372,30,372,34],[372,35,372,41],[372,42,372,49],[372,50,372,54],[372,55,372,60],[369,30,369,34],[369,35,369,41],[369,42,369,49],[369,50,369,54],[369,55,369,60],[370,30,370,34],[370,35,370,41],[370,42,370,49],[370,50,370,54],[370,55,370,60],[371,30,371,34],[367,35,367,41],[367,42,367,49],[367,50,367,54],[367,55,367,60],[368,30,368,34],[368,35,368,41],[368,42,368,49],[368,50,368,54],[368,55,368,60],[367,30,367,34],[363,30,363,34],[363,35,363,41],[363,42,363,49],[363,50,363,54],[363,55,363,60],[364,30,364,34],[364,35,364,41],[364,42,364,49],[364,50,364,54],[364,55,364,60],[365,30,365,34],[365,35,365,41],[365,42,365,49],[365,50,365,54],[365,55,365,60],[366,30,366,34],[366,35,366,41],[366,42,366,49],[366,50,366,54],[366,55,366,60],[391,0,391,29],[393,0,393,29],[394,0,394,29],[395,0,395,29],[396,0,396,29],[397,0,397,29],[373,0,373,29],[374,0,374,29],[375,0,375,29],[376,0,376,29],[377,0,377,29],[378,0,378,29],[381,0,381,29],[382,0,382,29],[390,0,390,29],[364,0,364,29],[365,0,365,29],[366,0,366,29],[367,0,367,29],[368,0,368,29],[369,0,369,29],[370,0,370,29],[371,0,371,29],[372,0,372,29],[379,0,379,29],[387,0,387,29],[392,0,392,29],[386,0,386,29],[362,0,362,29],[362,30,362,34],[362,35,362,41],[362,42,362,49],[362,50,362,54],[362,55,362,60],[352,30,352,49],[352,50,352,60],[363,0,363,29],[360,0,360,29],[360,30,360,34],[360,35,360,41],[360,42,360,49],[360,50,360,54],[360,55,360,60],[361,0,361,29],[361,30,361,34],[361,35,361,41],[361,42,361,49],[361,50,361,54],[361,55,361,60],[358,0,358,29],[358,30,358,34],[358,35,358,41],[358,42,358,49],[358,50,358,54],[358,55,358,60],[359,0,359,29],[359,30,359,34],[359,35,359,41],[359,42,359,49],[359,50,359,54],[359,55,359,60],[356,0,356,29],[356,30,356,34],[356,35,356,41],[356,42,356,49],[356,50,356,54],[356,55,356,60],[357,0,357,29],[357,30,357,34],[357,35,357,41],[357,42,357,49],[357,50,357,54],[357,55,357,60],[354,0,354,29],[354,30,354,34],[354,35,354,41],[354,42,354,49],[354,50,354,54],[354,55,354,60],[355,0,355,29],[355,30,355,34],[355,35,355,41],[355,42,355,49],[355,50,355,54],[355,55,355,60],[37,1,37,22],[30,1,30,15],[23,0,23,16],[24,0,24,60],[20,0,20,21],[21,0,21,7],[22,0,22,21],[32,1,32,16],[57,50,57,58],[51,27,51,40],[51,41,51,59],[49,2,49,19],[50,0,50,15],[51,0,51,12],[51,13,51,25],[57,1,57,13],[57,15,57,25],[57,27,57,37],[57,39,57,48],[31,1,31,59],[33,1,36,59],[38,1,47,59],[30,48,30,59],[16,9,16,11],[19,9,19,20],[11,36,11,60],[12,36,13,60],[16,20,16,23],[17,20,17,23],[18,20,18,23],[15,15,15,18],[16,15,16,18],[13,13,14,13],[13,15,14,15],[13,16,14,16],[13,17,14,17],[13,18,14,18],[13,20,14,20],[13,30,14,30],[13,31,14,31],[13,32,14,32],[13,33,14,33],[13,34,14,34],[15,30,15,34],[15,20,15,23],[13,22,14,22],[13,23,14,23],[13,25,14,25],[13,27,14,27],[13,28,14,28],[19,0,19,7],[16,30,16,34],[17,30,17,34],[18,30,18,34],[15,6,15,8],[16,6,16,8],[17,6,17,8],[15,9,15,11],[15,12,15,14],[16,12,16,14],[15,27,15,28],[16,27,16,28],[15,24,15,26],[16,24,16,26],[17,12,17,14],[0,6,0,60],[1,6,1,60],[8,0,8,34],[9,0,9,34],[11,7,11,34],[11,0,11,5],[7,36,7,60],[3,42,3,60],[13,0,13,5],[13,7,14,7],[13,9,14,9],[13,10,14,10],[13,12,14,12],[6,0,7,34],[6,36,6,60],[14,0,14,5],[13,21,14,21],[219,24,219,37],[219,51,219,58],[221,1,221,38],[222,1,222,38],[85,50,85,58],[97,1,97,22],[93,27,93,37],[93,39,93,48],[93,50,93,58],[93,15,93,25],[100,28,100,30],[75,1,79,13],[69,39,69,48],[61,15,61,25],[61,27,61,37],[61,39,61,48],[61,50,61,58],[77,15,77,25],[77,27,77,37],[77,39,77,48],[77,50,77,58],[69,50,69,58],[67,1,71,13],[59,1,63,13],[69,15,69,25],[69,27,69,37],[85,15,85,25],[85,27,85,37],[85,39,85,48],[99,5,99,16],[100,33,100,43],[102,7,102,23],[209,1,210,15],[209,19,209,39],[210,19,210,39],[209,43,209,58],[215,1,215,29],[215,32,215,33],[215,34,215,35],[215,36,215,37],[215,38,215,39],[215,41,215,42],[215,43,215,44],[215,45,215,46],[215,47,215,48],[215,50,215,51],[215,52,215,53],[215,54,215,55],[215,56,215,57],[287,54,287,58],[287,48,287,51],[288,48,288,51],[288,54,288,58],[262,4,262,6],[262,7,262,9],[262,10,262,15],[262,18,263,20],[262,21,263,26],[262,28,263,35],[262,37,263,48],[228,1,228,10],[229,1,229,10],[228,12,228,21],[229,12,229,21],[239,4,239,13],[239,16,239,23],[239,26,239,34],[238,47,240,57],[239,36,239,46],[245,0,245,60],[246,1,246,32],[233,1,233,58],[234,1,234,58],[236,3,237,13],[236,14,237,24],[236,25,237,35],[236,36,237,46],[236,47,236,57],[237,47,237,57],[228,23,228,35],[229,23,229,35],[301,1,301,13],[301,20,301,32],[254,7,254,9],[254,10,254,15],[299,54,299,58],[278,7,278,9],[278,10,278,15],[278,18,279,20],[300,1,300,9],[300,12,300,27],[300,30,300,33],[300,36,300,45],[301,38,301,50],[252,18,252,20],[252,21,252,26],[253,21,254,26],[253,18,254,20],[288,1,288,9],[287,36,287,44],[284,1,284,37],[285,1,285,19],[285,22,285,39],[285,42,285,58],[286,1,286,19],[286,22,286,39],[286,42,286,58],[287,1,287,9],[288,12,288,27],[287,30,287,33],[287,12,287,27],[288,30,288,33],[288,36,288,45],[309,29,309,59],[310,29,310,59],[262,51,263,58],[263,4,263,6],[263,7,263,9],[312,2,312,56],[313,2,313,56],[315,2,315,27],[315,31,315,56],[316,2,316,27],[316,31,316,56],[292,1,292,23],[289,38,289,50],[290,38,290,50],[307,0,307,60],[309,2,309,27],[310,2,310,27],[290,1,290,13],[290,20,290,32],[266,1,266,3],[266,4,266,10],[266,12,266,14],[266,15,266,23],[266,24,266,27],[266,28,266,37],[263,10,263,15],[277,21,277,26],[277,28,277,35],[277,37,277,48],[277,51,277,58],[300,48,300,51],[300,54,300,58],[348,55,348,60],[349,55,349,60],[350,0,350,60],[334,38,334,43],[334,44,334,52],[334,19,334,37],[334,53,334,56],[334,57,334,59],[335,19,335,37],[353,42,353,49],[321,1,321,14],[321,15,321,56],[322,1,322,13],[323,1,323,13],[323,15,323,27],[323,29,323,40],[323,41,323,56],[351,30,351,34],[351,35,351,41],[351,42,351,49],[351,50,351,54],[351,55,351,60],[338,57,338,59],[339,19,339,37],[339,38,339,43],[339,44,339,52],[339,53,339,56],[331,53,331,56],[340,3,340,52],[341,3,341,52],[342,3,342,52],[335,38,335,43],[339,1,339,13],[334,14,334,18],[278,4,278,6],[337,14,337,18],[338,14,338,18],[339,14,339,18],[402,30,402,37],[402,38,402,47],[402,48,402,60],[403,30,403,37],[403,38,403,47],[403,48,403,60],[401,0,401,8],[401,9,401,29],[402,0,402,8],[403,0,403,8],[402,9,402,29],[403,9,403,29],[335,14,335,18],[344,0,344,29],[345,0,345,29],[344,30,345,60],[347,0,347,29],[352,0,352,29],[353,0,353,29],[353,30,353,34],[353,35,353,41],[353,50,353,54],[353,55,353,60],[351,0,351,29],[346,30,346,60],[348,0,349,54],[299,30,299,33],[299,36,299,44],[299,48,299,51],[298,22,298,39],[298,42,298,58],[299,1,299,9],[299,12,299,27],[91,1,95,13],[83,1,87,13],[419,30,419,37],[419,38,419,47],[419,48,419,60],[420,30,420,37],[420,38,420,47],[420,48,420,60],[549,0,549,2],[550,0,550,2],[544,3,544,60]],"merged_total":1514,"flags":["merged_cut"]}
[null,null,null,null,null,null,"MINISTERUL AGRICULTURII ŞI DEZVOLTĂRII RURALE"]
[null,null,null,null,null,null,"AGENŢIA PENTRU FINANŢAREA INVESTIŢIILOR RURALE"]
[null,null,null,null,null,null,null,null,null,null,null,null,null,null,null,null,"GAL TARA OLTULUI"]
[null,null,null,null,null,null,null,null,null,null,null,null,"M19/2B/1-Sprijinirea tinerilor fermieri si a fermelor mici-FEADR",null,null,null,null,null,null,null,null,null,null,null,null,null,null,null,null,null,null,null,null,null,null,null,null,null,null,null,null,null,"SECŢIUNE GENERALĂ"]
[null,null,null,null,null,null,null,null,null,null,null,null,"B.Sprijinirea fermelor mici"]
[]
["DATE DE ÎNREGISTRARE",null,null,null,null,null,null,null,null,null,null,null,null,null,null,null,null,null,null,null,null,null,null,null,null,null,null,null,null,null,null,null,null,null,null,null,"NUME ŞI PRENUME DIRECTOR GENERAL"]
[null,null,null,null,null,null,null,null,null,null,null,null,null,null,null,null,null,null,null,null,null,null,null,null,null,null,null,null,null,null,null,null,null,null,null,null,"ADJUNCT CRFIR"]
["Se completează de către Agenția pentru Finanțarea Investițiilor Rurale -Centrul"]
["Regional- Programul FEADR 2014-2020"]
[]
["OJFIR",null,null,null,null,null,null,null,null,null,null,null,null,null,null,null,null,null,null,null,null,null,null,null,null,null,null,null,null,null,null,null,null,null,null,null,"Semnătura Director General Adjunct CRFIR"]
[null,null,null,null,null,null,null,null,null,null,null,null,null,null,null,null,null,null,null,null,null,null,null,null,null,null,null,null,null,null,null,null,null,null,null,null,"Ştampila CRFIR"]
["Număr "]
["înregistrare"]
[]
[]
[]
[]
["Data Înregistrării"]
["Numele şi prenumele persoanei care înregistrează"]
["Semnătura:"]
["Data primirii cererii de finanţare la contractare:"]
["Se completează de către solicitant"]
["A PREZENTARE GENERALĂ"]
[]
[null,"A1 Măsura",null,null,null,null,null,null,null,null,null,null,null,null,"Submăsura 19.2 - M19/2B/1- Sprijinire tinerilor fermieri si a fermelor mici"]
[]
[null,null,null,null,null,null,null,null,null,null,null,null,null,null," B- Sprijinirea  fermelor mici"]
[]
[null,"A2 Denumire solicitant:"]
[]
[null,"A3 Titlu proiect:"]
[]
[]
[]
[]
[null,"A4 Descrierea succintă a proiectului:"]
[]
[]
[]
[]
[]
[]
[]
[]
[]
[]
[]
[null,null,"A5 Amplasarea proiectului:"]
[]
["Regiunea de dezvoltare:",null,null,null,null,null,null,null,null,null,null,null,null,null,null,null,null,null,null,null,null,null,null,null,null,null,null,"Judeţ:"]
[]
["Localitate",null,null,null,null,null,null,null,null,null,null,null,null,null,null,null,null,null,null,null,null,null,null,null,"Sat",null,null,null,null,null,null,null,null,null,null,null,null,null,null,null,null,null,"Cod Postal"]
[]
[null,"Strada",null,null,null,null,null,null,null,null,null,null,null,null,null,null,null,null,null,null,null,null,null,null,null,null,null,null,"Nr."]
[]
[null,"Obiectivele investiţiei",null,null,null,null,null,null,null,null,null,null,null,null,null,"Judeţ",null,null,null,null,null,null,null,null,null,null,null,"Comună",null,null,null,null,null,null,null,null,null,null,null,"Sat",null,null,null,null,null,null,null,null,null,null,"Sat"]
[]
[]
[]
[]
[]
[]
[]
[]
[]
[]
[]
[]
[]
[]
[]
[]
[]
[]
[]
[]
[]
[]
[]
[]
[]
[]
[]
[]
[]
[]
[]
[]
[]
[]
[]
[]
[]
[]
[]
[null,"A6 Detalii proiect"]
[null,null," - Sectorul exploatatie agricole:"]
[null,null,null,null,null,"Vegetal"]
[null,null,null,null,null,null,null,"culturi de câmp"]
[null,null,null,null,null,null,null,"horticultură"]
[null,null,null,null,null,null,null,"viticultură"]
[null,null,null,null,null,null,null,"culturi permanente (altele decât viticultura)"]
[null,null,null,null,null,"Zootehnic"]
[null,null,null,null,null,null,null,"bovine pentru carne;"]
[null,null,null,null,null,null,null,"bovine pentru lapte;"]
[null,null,null,null,null,null,null,"ovine şi caprine;"]
[null,null,null,null,null,null,null,"porcine;"]
[null,null,null,null,null,null,null,"păsări de curte"]
[null,null,null,null,null,"Mixte - culturi mixte;"]
[null,null,null,null,null,"Mixte - animale mixte;"]
[null,null,null,null,null,"Mixte - culturi şi creşterea animalelor, cu excepţia albinelor;"]
[null,null,null,null,null,"Albine ;"]
[null,null,null,null,null,"Altele"]
[null,null," - Sectorul obiectivului prevăzut în planul de afaceri:"]
[null,null,null,null,null,"Vegetal"]
[null,null,null,null,null,null,null,"culturi de câmp"]
[null,null,null,null,null,null,null,"horticultură"]
[null,null,null,null,null,null,null,"viticultură"]
[null,null,null,null,null,null,null,"culturi permanente (altele decât viticultura)"]
[null,null,null,null,null,"Zootehnic"]
[null,null,null,null,null,null,null,"bovine pentru carne;"]
[null,null,null,null,null,null,null,"bovine pentru lapte;"]
[null,null,null,null,null,null,null,"ovine şi caprine;"]
[null,null,null,null,null,null,null,"porcine;"]
[null,null,null,null,null,null,null,"păsări de curte"]
[null,null,null,null,null,"Mixte - culturi mixte;"]
[null,null,null,null,null,"Mixte - animale mixte;"]
[null,null,null,null,null,"Mixte - culturi şi creşterea animalelor, cu excepţia albinelor;"]
[null,null,null,null,null,"Albine ;"]
[null,null,null,null,null,"Altele"]
[]
[null,null," - Zona în care se află exploataţia:"]
[null,null,null,null,null,null,null,"zona normală;"]
[null,null,null,null,null,null,null,"zona montană;"]
[null,null,null,null,null,null,null,"zona cu constrângeri specifice;"]
[null,null,null,null,null,null,null,"zona cu constrângeri semnificative;"]
[]
[null,null," - Gradul de dotare al exploataţiei:"]
[null,null,null,null,null,null,null,"deţin baze de producţie specifice activităţii"]
[null,null,null,null,null,null,null,"nu deţin baze de producţie specifice activităţii"]
[null,null,null,null,null,null,null,null,null,null,"nu propun achizitii pentru realizarea bazei de producţie"]
[null,null,null,null,null,null,null,null,null,null,"propun achiziţii pentru realizarea bazei de producţie"]
[null,null," - Tipul producţiei:"]
[null,null,null,null,null,null,"Ecologică"]
[null,null,null,null,null,null,"Convenţională"]
[null,"A7"]
[null,null,null,null,null,"Declar pe propria răspundere că nu am accesat PNA 2014-2016"]
[null,null,null,null,null,"Declar pe proprie răspundere că nu voi accesa PNA 2017-2019 între momentul depunerii Cererii de Finanţare la PNDR 2014-2020 şi momentul acordării celei de-a doua tranşe de plată din PNDR 2014-2020;"]
[null,null,null,null,null,"Declar pe propria răspundere că am accesat PNA 2014-2016 şi am beneficiat de finanţare pentru următoarele achiziţii (pentru care nu voi solicita finanţare din PNDR 2014-2020 ):"]
["Anul accesării:",null,null,null,null,null,null,null,null," Produse Achiziţionaze prin program:"]
[]
[]
[]
[]
[]
[null,null,null,null,null,"Declar pe propria răspundere că nu voi solicita finanţare din PNDR 2014-2020 pentru următoarele achiziţii pe care intenţionez să le decontez prin accesarea PNA 2017-2019:"]
[]
[]
[]
[]
[]
[]
[null,null,"A8 DETALII PRIVIND TERENUL EXPLOATAŢIEI CARE STĂ LA BAZA CALCULULUI SO:"]
[null,"Judeţ",null,null,null,null,null,null,null,null,null,null,null,null,null,null,"Comună",null,null,null,null,null,null,null,null,null,null,null,null,null,null,null,null,null,null,null,"Sat"]
[]
[null,"Modalităţi deţinere"]
[null,null,null,"Moştenire / Donaţie",null,null,null,null,null,null,null,null,null,null,null,null,"Număr de ha",null,null,null,null,null,null,"Blocul fizic",null,null,null,null,null,null,null," ","Parcela",null,null,null,null,null,null,null,null,null,null,"Tarlaua"]
[null,null,null,"Achiziţie"]
[null,null,null,"Arendă / Concesiune/ Comodat / Închiriere/ Dare temporă în administrare sau folosinţă"]
[null,"Persoana care a dat moştenirea/donaţia/vânzător/arendator/concedent/comodant/locator / Persoana care a dat temporar în administrare sau folosință"]
[null,"Nume si prenume / Denumire",null,null,null,null,null,null,null,null,null,null,null,null,null,null,null,null,null,null,null,null,null,null,null,null,"Cod unic înregistrare/Cod numeric personal",null,null,null,null,null,null,null,null,null,null,null,null,null,null,null,null,"Act identitate (serie/număr) cetăţeni străini"]
[]
[]
[null,"Notă: Pentru a adăuga o noua inregistrare accesaţi foaia (sheet) corespunzătoare sau click pe butonul din dreapta",null,null,null,null,null,null,null,null,null,null,null,null,null,null,null,null,null,null,null,null,null,null,null,null,null,null,null,null,null,null,null,null,null,null,null,null,null," "]
[]
[null,null,"A9 Total punctaj estimat (autoevaluare) pentru criteriile de selecţie îndeplinite"]
[null,null,"Punctaj estimat (autoevaluare)"]
[null,null,"Detalierea criteriilor de selecţie îndeplinite:"]
[null,null,null,null,"CS 1. Comasării exploataţiilor având în vedere numărul exploataţiilor preluate integral 5P/ exploatatie preluata integral"]
[null,null,null,null,null,null,null,"1. Solicitantul preia integral minim doua exploatații agricole     "]
[null,null,null,null,null,null,null,"2. Solicitantul preia integral cel puţin o exploatație agricolă            "]
[null,null,null,null,"CS 2 Sectorului prioritar care vizează sectoarele: zootehnic (bovine,apicultură, ovine și caprine) și vegetal ( legumicultura, inclusiv producere de material săditor, pomicultura și producere de sămânță)"]
[null,null,null,null,null,null,null,"A. Sectorul vegetal"]
[null,null,null,null,null,null,null,null,null,null,"Legumicultură (se referă atât la legumele în câmp cât şi la cele în spaţii protejate, inclusiv ciupercăriile din spaţiile climatizate), se acceptă şi producere de material săditor/sămânță  de legume;"]
[null,null,null,null,null,null,null,null,null,null,"2. Pomicultură, exceptând pepinierele pomicole"]
[null,null,null,null,null,null,null,null,null,null,"Producere de sămânță/ material săditor, inclusiv pentru pepiniere pomicole și viticole – exceptând cele pentru legumicultură"]
[null,null,null,null,null,null,null,"B. Sectorul zootehnic"]
[null,null,null,null,null,null,null,null,null,null,"1. Ovine și caprine"]
[null,null,null,null,null,null,null,null,null,null,"2. Bovine (sunt incluse și bubalinele)"]
[null,null,null,null,null,null,null,null,null,null,"3. Apicultură"]
[null,null,null,null,"CS 3.  Implementarea  planului  de  afaceri  in  minim  2  ani  de  la semnarea deciziei de finantare. ATENȚIE!Termenul de finalizare a proiectelor (inclusiv depunerea și efectuarea ultimei plăți) este până la data de 31.12.2025. Pentru proiectele care se supun ajutorului de minimis, contractarea se va efectua până la data de 31.12.2023.\nDin cauza termenului limitat de implementare, recomandăm ca în această sesiune să nu se depună proiecte care prevăd construcții."]
[null,null,null,null,"CS 4. Nivelului de calificare în domeniul agricol"]
[null,null,null,null,null,null,null,null,null,null,"1. Solicitantul a absolvit cu diplomă de studii superioare în domeniul agricol "]
[null,null,null,null,null,null,null,null,null,null,"2. Solicitantul a absolvit studii postliceale sau liceale în domeniul agricol "]
[null,null,null,null,null,null,null,null,null,null,"3.  Formare profesională care conferă un nivel de calificare superior nivelului minim obligatoriu solicitat prin eligibilitate și anume, prin studii/ curs de calificare în domeniul agricol, agro-alimentar, veterinar sau economie agrară de cel puțin Nivel 1 de calificare profesională, conform legislației aplicabile la momentul acordării certificatului de calificare profesională.\nAbsolvirea de studii superioare se dovedește cu diploma de licență/ master/ doctor, iar\nabsolvirea studiilor post liceale sau liceale se dovedește cu diploma de bacalaureat. Pentru demonstrarea criteriului de selecție și acordarea punctajului minim se va prezenta, pe lângă documentul care certifică absolvirea celor 8 clase, un act doveditor (diplomă, certificat de calificare) eliberat de un formator de formare profesională acreditat (recunoscut de Ministerul Educației și Cercetării Ștințifiice) prin care se certifică competențele profesionale de cel puțin Nivel I de calificare profesională (instruirea/calificarea/specializarea). Nivelul I de calificare profesională are o durată de minim 360 ore, conform prevederilor legale în vigoare.\n"]
[null,null,null,null,"CS. 5 Rase/soiurilor autohtone"]
[null,null,null,null,null,null,null,null,null,null,"Rase autohtone;"]
[null,null,null,null,null,null,null,null,null,null,"Soiuri autohtone."]
[null,null,null,null,"CS. 6 Crearea de locuri de muncă"]
[null,null,null,null,0,null,null,null,null,null,"1 loc de munca"]
[null,null,null,null,null,null,null,null,null,null,"2 locuri de munca"]
[null,null,null,null,null,null,null,null,null,null,"3 locuri de munca"]
[]
[]
["B INFORMAŢII PRIVIND SOLICITANTUL"]
["B1 Descrierea solicitantului"]
[null,"B1.1 Informaţii privind solicitantul"]
[null,"Data înființării",null,null,null,null,null,null,null,null,null,null,null,null,null,null,null,null,null,"Cod Unic de Înregistrare și/sau Codul de",null,null,null,null,null,null,null,null,null,null,null,null,null,null,null,null,null,null,null,null,null,null,null,"Statut juridic al solicitantului"]
[null,null,null,null,null,null,null,null,null,null,null,null,null,null,null,null,null,null,null,"Înregistrare Fiscală"]
[]
[]
[null,"Număr de înregistrare în registrul comerțului"]
[]
[null,"Codul CAEN al activităţii/activităţilor finanţate prin proiect"]
[]
[null,"Codul unic de înregistrare APIA",null,null,null,null,null,null,null,null,null,null,null,null,null,null,null,null,null,null,null,null,null,null,null,null,null,null,null,null,null,null,null,null,null,null,"Anul atribuirii codului"]
[]
[null,"Cod Registru Naţional al Exploataţiilor ANSVSA",null,null,null,null,null,null,null,null,null,null,null,null,null,null,null,null,null,null,null,null,null,null,null,null,null,null,null,null,null,null,null,null,null,null,null,null,null,"Anul atribuirii codului"]
[]
[null,"Cod Registru Naţional al Exploataţiilor ANSVSA pentru Asociaţie/Cooperativa "]
[null,"(obligatoriu pentru fermele zootehnice)"]
[null,"B1.2 Sediul social / Domiciliul stabil al solicitantului / Reşedinţa din România"]
[null,"Judeţ",null,null,null,null,null,null,null,null,null,null,null,null,null,null,null,null,null,null,null,null,"Localitate",null,null,null,null,null,null,null,null,null,null,null,null,null,null,null,null,null,null,null,"Sat"]
[]
[null,"Cod Poştal",null,null,null,null,null,null,null,null,null,"Strada",null,null,null,null,null,null,null,null,null,null,null,null,null,null,null,null,null,null,null,null,null,null,"Nr.",null,null,null,null,"Bloc",null,null,null,null,"Scara",null,null,null,null,"Et. ",null,null,null,"Ap."]
[]
[null,"Telefon fix",null,null,null,null,null,null,null,null,null,null,"Telefon mobil",null,null,null,null,null,null,null,null,null,null,"Fax",null,null,null,null,null,null,null,null,null,null,null,null,null,"E-mail"]
[]
[null,"Telefon fix/ mobil",null,null,null,null,null,null,null,null,null,null,null,null,null,null,null,null,null,null,"Fax",null,null,null,null,null,null,null,null,null,null,null,null,null,null,null,"E-mail"]
[]
[]
[null,"B1.3 Numele şi prenumele reprezentantului legal şi funcţia acestuia în cadrul organizaţiei, precum şi"]
[null,"specimenul de semnatură:"]
[]
[null,null,null,"Numele",null,null,null,null,null,null,null,null,null,null,"Prenumele",null,null,null,null,null,null,null,null,null,null,"Funcţia",null,null,null,null,null,null,null,null,null,null,"Reprezentant legal",null,null,null,null,null,null,null,null,null,null,"Specimen de"]
[null,null,null,null,null,null,null,null,null,null,null,null,null,null,null,null,null,null,null,null,null,null,null,null,null,null,null,null,null,null,null,null,null,null,null,null,null,null,null,null,null,null,null,null,null,null,null,"semnătură"]
[]
[null,null,null,null,null,null,null,null,null,null,null,null,null,null,null,null,null,null,null,null,null,null,null,null,null,null,null,null,null,null,null,null,null,null,null,null,"LEGAL"]
[]
[null,"Nivel de studii şi denumirea instituţiei care a emis documentul"]
[]
[]
[]
["B2 Informaţii referitoare la reprezentantul legal de proiect"]
[null,"B2.1 Date de identitate ale reprezentantului legal de proiect"]
[]
[null,null,null,"Data naşterii",null,null,null,null,null,null,null,null,null,null,null,null,null,null,null,null,null,null,null,null,"Cod numeric personal"]
[]
[]
[]
[null,null,null,null,"Act de identitate",null,null,null,null,null,null,null,null,null,null,null,null,null,"Seria",null,null,"Nr.",null,null,null,null,null,null,"Eliberat la data de",null,null,null,null,null,null,null,null,"de:",null,null,null,null,null,null,null,null,null,null,null,null,null,"Valabil până la:"]
[null,null,null,null,"B.I.",null,null,"C.I.",null,null,"Paşaport"]
[]
[]
[null," Date de identitate ale soţului / soţiei:"]
[null,null,null,"Data naşterii",null,null,null,null,null,null,null,null,null,null,null,null,null,null,null,null,null,null,null,null,"Cod numeric personal"]
[]
[]
[]
[null,null,null,null,"Act de identitate",null,null,null,null,null,null,null,null,null,null,null,null,null,"Seria",null,null,"Nr.",null,null,null,null,null,null,"Eliberat la data de",null,null,null,null,null,null,null,null,"de:",null,null,null,null,null,null,null,null,null,null,null,null,null,"Valabil până la:"]
[null,null,null,null,"B.I.",null,null,"C.I.",null,null,"Paşaport"]
[]
[]
[]
[null,null,null,null,"Asociat unic",null,null,null,null,null,null,null,null,null,null,"Asociat majoritar",null,null,null,null,null,null,null,null,null,null,null,null,"Administrator"]
[]
[]
[null,null,"Asociaţi"]
[]
[null,null,null,"Nume si prenume asociat"]
[]
[null,null,null,"Data naşterii",null,null,null,null,null,null,null,null,null,null,null,null,null,null,null,null,null,null,null,null,"Cod numeric personal"]
[]
[]
[]
[null,null,null,null,"Act de identitate",null,null,null,null,null,null,null,null,null,null,null,null,null,"Seria",null,null,"Nr.",null,null,null,null,null,null,"Eliberat la data de",null,null,null,null,null,null,null,null,"de:",null,null,null,null,null,null,null,null,null,null,null,null,null,"Valabil până la:"]
[null,null,null,null,"B.I.",null,null,"C.I.",null,null,"Paşaport"]
[]
[]
[null,"Notă: Pentru a adăuga o noua inregistrare accesaţi foaia (sheet) corespunzătoare sau click pe butonul din dreapta"]
[]
[]
[null,"B2.2 Domiciliul stabil al reprezentantului legal de proiect"]
[null,"Judeţ",null,null,null,null,null,null,null,null,null,null,null,null,null,null,null,null,null,null,null,null,"Localitate",null,null,null,null,null,null,null,null,null,null,null,null,null,null,null,null,null,null,null,"Sat"]
[]
[null,"Cod Poştal",null,null,null,null,null,null,null,null,null,null,"Strada",null,null,null,null,null,null,null,null,null,null,null,null,null,null,null,null,null,"Nr.",null,null,null,null,null,"Bloc",null,null,null,null,null,null,null,null,null,null,null,"Scara",null,null,null,null,null,"Ap."]
[]
[null,"Telefon fix",null,null,null,null,null,null,null,null,null,null,null,null,null,null,null,null,null,null,"Telefon mobil",null,null,null,null,null,null,null,null,null,null,null,null,null,null,null,null,null,"Fax"]
[]
[null,"E-mail"]
[]
[]
[null,"B2.3 Domiciliul stabil al reprezentantului legal de proiect"]
[]
[null,"Denumire angajator:"]
[null,"Judeţ",null,null,null,null,null,null,null,null,null,null,null,null,null,null,null,null,null,null,null,null,"Localitate",null,null,null,null,null,null,null,null,null,null,null,null,null,null,null,null,null,null,null,"Sat"]
[]
[null,"Cod Poştal",null,null,null,null,null,null,null,null,null,null,"Strada",null,null,null,null,null,null,null,null,null,null,null,null,null,null,null,null,null,"Nr.",null,null,null,null,null,"Bloc",null,null,null,null,null,null,null,null,null,null,null,"Scara",null,null,null,null,null,"Ap."]
[]
[null,"Telefon fix",null,null,null,null,null,null,null,null,null,null,null,null,null,null,null,null,null,null,"Telefon mobil",null,null,null,null,null,null,null,null,null,null,null,null,null,null,null,null,null,"Fax"]
[]
[null,"E-mail"]
[]
[]
[]
["B3 Informaţii privind contul bancar pentru Proiectul F.E.A.D.R. SUBMĂSURA M19/2B/1"]
[]
[null,null,"B3.1 Denumirea Institutiei Financiar Bancară",null,null,null,null,null,null,null,null,null,null,null,null,null,null,null,null,null,null,null,null,null,null,null,null,null,null,"Denumirea Sucursalei/Filialei/Agenției instituției Financiar Bancare"]
[]
[]
[null,null,"B3.2 Adresa Sucursalei/Filialei/Agenției instituției Financiar-Bancare"]
[]
[]
[null,null,"B3.3 Cod-ul IBAN al contului Bancar",null,null,null,null,null,null,null,null,null,null,null,null,null,null,null,null,null,null,null,null,null,null,null,null,null,null,null,null,"B3.4 Titularul contului bancar"]
[]
[]
[]
["B4 Date privind consultantul"]
[]
[null,"Denumirea Consultantului"]
[]
[null,"Codul Unic de Înregistrare",null,null,null,null,null,null,null,null,null,null,null,null,null,null,null,null,null,null,null,null,null,null,null,null,null,null,null,"Nr. înregistrare ONRC"]
[]
["C FINANȚĂRI NERAMBURSABILE solicitate și /sau obținute"]
[null,null,"C. Solicitantul a mai obținut finanțări nerambursabile ? Detailați cu datele solicitate in tabelul de mai jos*"]
[]
[]
[]
[null,"DENUMIRE PROGRAM FINANȚARE",null,null,null,null,null,null,null,null,null,null,null,null,"Număr proiecte",null,null,null,null,"Titlul Proiectui / Codul contractului/ Deciziei de finanțare ***",null,null,null,null,null,null,null,null,null,null,null,null,null,null,null,null,null,null,"Data accesării/ finalizării",null,null,null,null,null,"Valoarea accesării\nsprijinului\n(EUR)",null,null,null,null,null,null,null,null,"DA",null,null,null,"NU"]
[null,"Program Naţional Apicol (PNA)",null,null,null,null,null,null,null,null,null,null,null,null,null,null,null,null,null,null,null,null,null,null,null,null,null,null,null,null,null,null,null,null,null,null,null,null,null,null,null,null,null,null,null,null,null,null,null,null,null,null,null,null,0]
[null,"Programul Naţional de Sprijin al României în sectorul vitivinicol (PNS)"]
[null,"FEADR **"]
[null,"Alte programe europene**"]
[null,"Alte programe europene**"]
[null,"Alte programe europene**"]
[null,"Alte programe internaționale**"]
[null,"Alte programe internaționale**"]
[null,"Alte programe internaționale**"]
[null,null,null,"* se completează indiferent dacă solicitantul a obţinut / nu a obţinut finanţări nerambursabile"]
[null,null,null,"** se completează de către solicitant cu denumirea programului"]
[null,null,null,"*** se completează în funcţie de tipul proiectului"]
[]
["MINISTERUL AGRICULTURII ŞI DEZVOLTĂRII RURALE",null,null,null,null,null,null,null,null,null,null,null,null,null,null,null,null,null,null,null,null,null,null,null,null,null,null,null,null,null,"SECTIUNE SPECIFICA SUBMĂSURA M19/2B/1"]
["AGENŢIA PENTRU FINANŢAREA INVESTIŢIILOR RURALE"]
[]
[]
["D. LISTA DOCUMENTELOR ANEXATE PROIECTELOR AFERENTE SUBMĂSURII                         M19/2B/1-Sprijinirea tinerilor fermieri si a fermelor mici  B- Sprijinirea  fermelor mici",null,null,null,null,null,null,null,null,null,null,null,null,null,null,null,null,null,null,null,null,null,null,null,null,null,null,null,null,null,null,null,null,null,null,null,null,null,null,null,null,null,null,null,null,null,null,null,null,null,null,null,null,null,null,"OPIS"]
[null,null,null,null,null,null,null,null,null,null,null,null,null,null,null,null,null,null,null,null,null,null,null,null,null,null,null,null,null,null,null,null,null,null,null,null,null,null,null,null,null,null,null,null,null,null,null,null,null,null,null,null,null,null,null,"documente"]
["A se anexa documentele în ordinea de mai jos:"]
["Lista documente",null,null,null,null,null,null,null,null,null,null,null,null,null,null,null,null,null,null,null,null,null,null,null,null,null,null,null,null,null,"Obligatoriu pentru toate proiectele",null,null,null,null,"Obligatoriu, dacă proiectul impune",null,null,null,null,null,null,"PAGINA de   la - până la",null,null,null,null,null,null,null,"Obligatoriu pentru toate proiectele",null,null,null,null,"Obligatoriu, dacă proiectul impune"]
["Documente specifice etapei",null,null,null,null,null,null,null,null,null,null,null,null,null,null,null,null,null,null,null,null,null,null,null,null,null,null,null,null,null,"DEPUNERE",null,null,null,null,null,null,null,null,null,null,null,null,null,null,null,null,null,null,null,"CONTRACTARE"]
["1. Planul de afaceri pentru dezvoltarea exploataţiei (în original)"]
["2. Copiile documentelor de proprietate/ folosinţă pentru exploataţia agricolă \n \na) Pentru terenul agricol:\n• documentul care atestă dreptul de proprietate asupra terenului agricol conform prevederilor legislaţiei în vigoare (contract de vânzare - cumpărare autentificat de notar, act de donaţie autentificat de notar, hotarâre judecatorească definitivă şi irevocabilă cu punere în posesie, certificat de moştenitor unic autentificat de notar, precum şi alte documente care demonstrează terţilor dreptul de proprietate conform prevederilor legislaţiei în vigoare autentificate la notar),"]
["şi/sau\n• tabelul centralizator cu suprafeţele luate în arendă pe categorii de folosinţă şi perioade de arendare, emis de Primărie, semnat de persoanele autorizate conform prevederilor legislaţiei în vigoare (care să conţină sumarul contractelor de arendare valabile la data depunerii Cererii de Finanţare); In cazul exploataţiilor care presupun înfiinţarea si/sau reconversia plantaţiilor pomicole, documentele trebuie sa fie valabile cel putin 15 ani începând cu anul depunerii cererii de finanţare, cu excepţia pepinierelor, culturilor de căpşun, zmeur, mur, coacăz şi agriş, unde perioada minimă este de 10 ani. "]
["şi/sau\n• contractul de concesiune valabil la data depunerii Cererii de Finanţare însoţit de adresa emisă de concedent care conţine situaţia privind respectarea clauzelor contractuale, dacă este în graficul de realizare a investiţiilor prevăzute în contract şi alte clauze; In cazul exploataţiilor care presupun înfiinţarea si/sau reconversia plantaţiilor pomicole, documentele trebuie sa fie valabile cel putin 15 ani începând cu anul depunerii cererii de finanţare, cu excepţia pepinierelor, culturilor de căpşun, zmeur, mur, coacăz şi agriş, unde perioada minimă este de 10 ani. "]
["şi/sau\n• contractul de comodat/contractul de închiriere/ documentul potrivit căruia suprafața de teren a fost dată temporar în administrare/ folosință"]
["şi/sau\n• document notarial care atestă constituirea patrimoniului de afectaţiune"]
["şi/sau\n• documentele pentru terenul ce constituie vatra stupinei: acte de proprietate conform legislaţiei în vigoare, sau contract de concesiune/ contract de arendă/ contract de închiriere/ contract de comodat valabile la data depunerii Cererii de finanţare. Suprafaţa de teren eligibilă pentru vatra stupinei este de minim 5mp/stup şi 50 mp pentru fiecare pavilion apicol."]
["b) Pentru construcţii permanente, conform prevederilor Legii nr. 50/1991, cu modificările și completările ulterioare:\n• documentul care atestă dreptul real principal asupra construcţiei: drept de proprietate, uz, uzufruct, superficie, servitute, concesiune (dobândit prin act autentic notarial de ex.: contract de vânzare-cumpărare, de schimb, de donaţie, certificat de moştenitor, act administrativ de restituire, hotărâre judecătorească)."]
["c) Pentru construcţii provizorii, conform prevederilor Legii nr. 50/1991, cu modificările și completările ulterioare:\n• documentul care atestă dreptul real principal asupra construcției: drept de proprietate, uz, uzufruct, superficie, servitute (dobândit prin act autentic notarial de ex.: contract de vânzare-cumpărare, de schimb, de donație, certificat de moștenitor, act administrativ de restituire, hotărâre judecătorească, lege)"]
[" sau\n• documentul care atestă dreptul de creanţă asupra construcţiei dobândit prin: concesiune, comodat, locaţiune. În cazul prezentării contractului de comodat/locațiune pentru construcțiile cu caracter provizoriu, conform prevederilor Legii nr. 50/1991, cu modificările și completările ulterioare, solicitantul trebuie să atașeze și acordul expres al proprietarului de drept."]
["d) Pentru animale, păsări şi familii de albine:\n• PAŞAPORTUL emis de ANZ pentru ecvideele (cabalinele) cu rasă şi origine"]
["• documentul emis de forma asociativă apicolă privind înregistrarea stupilor şi stupinelor constând în numerele plăcuţelor de identificare pentru fiecare stup şi panourile de identificare a stupinelor în conformitate cu prevederile legislaţiei în vigoare, actualizat cu cel mult 30 de zile înaintea datei depunerii Cererii de finanţare"]
["• Pentru exploataţiile mixte şi zootehnice: Copia Registrului agricol emis de Primărie actualizată cu cel mult 30 de zile înaintea datei depunerii Cererii de finanţare, din care să rezulte dreptul de folosinţă (proprietate/arendă/concesiune) al terenului, dreptul de proprietate asupra animalelor (toate categoriile de animale domestice şi sălbatice aflate în captivitate în cadrul exploataţiei), cu ştampila primăriei şi menţiunea  \"Conform cu originalul\".  "]
["şi\n• Pentru exploataţiile vegetale: Copia Registrului Agricol emis de Primărie actualizată în anul depunerii Cererii de Finanţare, din care să rezulte dreptul de folosinţă (proprietate/arendă/concesiune) al terenului, dreptul de proprietate asupra animalelor (toate categoriile de animale domestice şi sălbatice aflate în captivitate în cadrul exploataţiei), cu ştampila primăriei şi menţiunea \"Conform cu originalul\"."]
["3. Copiile situaţiilor financiare pentru anii  “n” si “n-1”, unde “n” este anul anterior anului în care solicitantul depune Cererea de Finanţare, înregistrate la Administraţia Financiară:\na)Pentru societăţi comerciale: \n• Bilanţul (cod 10);"]
["• Contul de profit şi pierderi (cod 20);"]
["• Datele informative (cod 30);"]
["• Situaţia activelor imobilizate (cod 40)."]
["ŞI/SAU \n• Declaraţia de inactivitate (pentru societăţile înfiinţate în anii \"n\" şi/sau \"n-1\", care nu au avut activitate).\n \nSocietăţile comerciale înfiinţate în anul 2017 nu au obligaţia depunerii acestor documente."]
["b)Pentru persoane fizice autorizate, întreprinderi individuale şi întreprinderi familiale:\n• Declaraţia privind veniturile realizate (Formularul 200 - cod 14.13.01.13);"]
["ŞI/SAU \n• Declaraţia privind veniturile din activităţi agricole - impunere pe normele de venit (Formularul 221 - cod 14.13.01.13/9), în cazul solicitanţilor care în anii \"n\" şi \"n-1\" sunt autorizaţi conform OUG.44/2008, cu modificările şi completările ulterioare, care au optat pentru calcularea venitului net pe bază de norme de venit.\n \nPersoanele fizice autorizate, întreprinderile individuale şi întreprinderile familiale înfiinţate în anul 2017 nu au obligaţia depunerii acestor documente."]
["4. Certificatul care să ateste lipsa datoriilor restante fiscale şi sociale emise de Direcţia Generală a Finanţelor Publice, iar în cazul în care solicitantul este proprietar asupra imobilelor, se va depune Certificat emis de Primăria de pe raza     cărora îşi au sediul social şi punctele de lucru."]
["5. Copia actului de identitate al reprezentantului legal de proiect (asociat unic/asociat majoritar/administrator)"]
["6. Hotarârea adunării generale a asociaţiilor(AGA) persoanei juridice, prin care se desemnează reprezentantul legal sau administratorul (Acţionar Majoritar 50%+1) care să reprezinte societatea în relaţia cu AFIR şi care exercită un control efectiv pe teren lung (de cel puţin 6 ani/8 ani în cazul sectorului pomicol) în ceea ce priveşte deciziile referitoare la gestionare, beneficii, riscuri financiare în cadrul exploataţiei respective"]
["7. Documentele care demonstrează gradul de rudenie între asociaţi / membrii familiei din cadrul microintreprinderii / întreprinderii mici (copiile actelor de identitate, alte documente relevante) "]
["8. •  documentul care atestă absolvirea învăţământului minim de 8 clase se ataşează în cazul în care solicitantul nu are studii superioare / postliceale/ liceale în domeniul agricol/ agro-alimentar/ veterinar/ economiei agrare;"]
["•  diploma de absolvire se ataşează în cazul studiilor superioare (diploma de doctor, diploma de disertatie, diploma de licenţă)"]
["• diploma de absolvire a studiilor postliceale (diploma/ certificatul de absolvire)/ liceale (diploma de bacalaureat) în domeniul agricol/ agro-alimentar/ veterinar/ economei agrare;"]
["• certificatul de calificare profesională se ataşează în cazul cursurilor de calificare/ recalificare în domeniul agricol/ agro-alimentar/ veterinar/ economiei agrare realizate de către furnizori de formare profesională a adulţilor autorizaţi pentru respectivul program de formare profesională (minim Nivelul I). De asemenea  sunt  acceptate şi certificatele de absolvire a cursurilor de calificare emise de ANCA în domeniul agricol, agro-alimentar, vetrerinar sau economie agrară."]
["• document de recunoaştere a competenţelor profesionale obţinute pe alte căi decât cele formale, care trebuie de asemenea să fie autorizat de Autoritatea Naţională pentru Calificări"]
["• certificatul de absolvire se ataşează în cazul cursurilor de perfecţionare/ specializare/ iniţiere în domeniul  agricol/ agro-alimentar/ veterinar/ economiei agrare realizate de către furnizori de formare profesională a adulţilor autorizaţi pentru respectivul program de formare profesională sau documentul echivalent acestuia; (sub numărul de ore aferent Nivelului I de calificare profesională)"]
["9. Cazierul judiciar, în original, al reprezentantului legal care să ateste lipsa înscrierilor care privesc sancţiuni penale în domeniul economico-financiar, valabil la data încheierii contractului - poate fi solicitat de către AFIR, în conformitate cu prevederile Legii nr.290/2004 privind cazierul judiciar, republicată, cu modificările şi completările ulterioare."]
["10. Copia/ copiile documentului/ documentelor care certifică utilizarea resurselor genetice autohtone\na) În cazul soiurilor de plante de cultură autohtone:\n·   factura fiscală de achiziție a seminței certificate  "]
["·   documentul oficial de certificare a lotului de sămânță cu mențiunea \"sămânţă admisă pentru însămânţare\"/ buletinul de analiză oficial cu mențiunea \"sămânţă admisă pentru însămânţare\"/ buletinul de analiză oficial cu mențiunea \"Necesar propriu\" şi \"Interzisă comercializarea\"/ documentul de calitate şi conformitate al furnizorului/ orice alt document echivalent documentelor menţionate emis într-un stat membru al Uniunii Europene sau într-o ţară terţă care are echivalenţă conform Deciziei Consiliului 2003/17/CE/ eticheta oficială. "]
["b) În cazul speciilor autohtone de animale\n - Certificatul de origine pentru animalele deţinute de solicitant emis de către Asociaţiile/Organizaţiile Crescătorilor de Animale acreditate pentru întocmirea şi menţinerea registrului genealogic din specia prevăzută în proiect, autorizată de ANZ"]
["11.  Copia contractului de colectare a gunoiului de grajd încheiat între solicitant şi deţinătorul platformei"]
["sau \n     Copia adeverinţei emisă de Primăria comunei pe teritoriul căreia se regăseşte platforma comunală, din care să rezulte faptul că aceasta va prelua gunoiul de grajd din exploataţia solicitantului"]
["12. Documentul emis de ANSVSA prin care se certifică înregistrarea exploataţiei ca fiind exploataţie comercială de tip A, conform prevederilor Ordinului nr.16/2010, cu modificările şi completările ulterioare."]
["13. Copiile documentelor emise de autoritățile de mediu, sanitar, sanitar-veterinar, dacă este cazul;"]
["14. Documentul emis de instituţia financiar-bancară în care să se menţioneze denumirea şi adresa instituţiei financiar-bancare, titularul contului, CUI-ul titularului şi codul IBAN al contului prin care se derulează proiectul FEADR."]
["15. Alte documente justificative pe care solicitantul le consideră relevante pentru proiect (dacă este cazul)"]
[]
[]
[]
[]
[]
["E. LISTA COEFICIENŢILOR DE CALCUL AI PRODUCŢIEI STANDARD PENTRU VEGETAL / ZOOTEHNIE 8)"]
["CALCULUL COEFICIENȚILOR DE PRODUCȚIE STANDARD PENTRU VEGETAL"]
["Coduri EUROSTAT",null,null,null,null,null,null,null,null,"Denumire culturi",null,null,null,null,null,null,null,null,null,null,null,null,null,null,null,null,null,null,null,null,"Suprafaţa       (ha)",null,null,null,null,null,null,null,"SO 2013           euro/ha",null,null,null,null,null,null,null,null,null,"SO"]
[0,null,null,null,null,null,null,null,null,1,null,null,null,null,null,null,null,null,null,null,null,null,null,null,null,null,null,null,null,null,2,null,null,null,null,null,null,null,3,null,null,null,null,null,null,null,null,null,4]
["B_1_1_1",null,null,null,null,null,null,null,null,"Grâu comun",null,null,null,null,null,null,null,null,null,null,null,null,null,null,null,null,null,null,null,null,null,null,null,null,null,null,null,null,614.09,null,null,null,null,null,null,null,null,null,{"$f":"AE404*AM404","v":0}]
["B_1_1_2",null,null,null,null,null,null,null,null,"Grâu dur",null,null,null,null,null,null,null,null,null,null,null,null,null,null,null,null,null,null,null,null,null,null,null,null,null,null,null,null,432.81,null,null,null,null,null,null,null,null,null,0]
["B_1_1_3",null,null,null,null,null,null,null,null,"Secară",null,null,null,null,null,null,null,null,null,null,null,null,null,null,null,null,null,null,null,null,null,null,null,null,null,null,null,null,354.27,null,null,null,null,null,null,null,null,null,0]
["B_1_1_4",null,null,null,null,null,null,null,null,"Orz+Orzoaică",null,null,null,null,null,null,null,null,null,null,null,null,null,null,null,null,null,null,null,null,null,null,null,null,null,null,null,null,529.44000000000005,null,null,null,null,null,null,null,null,null,0]
["B_1_1_5",null,null,null,null,null,null,null,null,"Ovăz",null,null,null,null,null,null,null,null,null,null,null,null,null,null,null,null,null,null,null,null,null,null,null,null,null,null,null,null,331.88,null,null,null,null,null,null,null,null,null,0]
["B_1_1_6",null,null,null,null,null,null,null,null,"Porumb boabe",null,null,null,null,null,null,null,null,null,null,null,null,null,null,null,null,null,null,null,null,null,null,null,null,null,null,null,null,641.79999999999995,null,null,null,null,null,null,null,null,null,0]
["B_1_1_7",null,null,null,null,null,null,null,null,"Orez",null,null,null,null,null,null,null,null,null,null,null,null,null,null,null,null,null,null,null,null,null,null,null,null,null,null,null,null,913.26,null,null,null,null,null,null,null,null,null,0]
["B_1_1_99",null,null,null,null,null,null,null,null,"Alte cereale:  sorg, hrişca, mei, triticale, iarba-cănăraşului, altele",null,null,null,null,null,null,null,null,null,null,null,null,null,null,null,null,null,null,null,null,null,null,null,null,null,null,null,null,452.74,null,null,null,null,null,null,null,null,null,0]
["B_1_2_1",null,null,null,null,null,null,null,null,"Mazăre boabe, fasole boabe, lupin dulce",null,null,null,null,null,null,null,null,null,null,null,null,null,null,null,null,null,null,null,null,null,null,null,null,null,null,null,null,533.77,null,null,null,null,null,null,null,null,null,0]
["B_1_2_2",null,null,null,null,null,null,null,null,"Linte, bob, năut şi măzăriche",null,null,null,null,null,null,null,null,null,null,null,null,null,null,null,null,null,null,null,null,null,null,null,null,null,null,null,null,454.79,null,null,null,null,null,null,null,null,null,0]
["B_1_3",null,null,null,null,null,null,null,null,"Cartofi(inclusiv cartofi noi, material săditor, cartof dulce destinat consumului uman)",null,null,null,null,null,null,null,null,null,null,null,null,null,null,null,null,null,null,null,null,null,null,null,null,null,null,null,null,3167.88,null,null,null,null,null,null,null,null,null,0]
["B_1_4",null,null,null,null,null,null,null,null,"Sfeclă de zahăr",null,null,null,null,null,null,null,null,null,null,null,null,null,null,null,null,null,null,null,null,null,null,null,null,null,null,null,null,1449.74,null,null,null,null,null,null,null,null,null,0]
["B_1_5",null,null,null,null,null,null,null,null,"Plante rădăcinoase pentru nutreț: sfecla furajeră, alte plante furajere din familia brasiceelor, napi furajeri, morcovi furajeri, batata(cartof dulce), păstârnac, ignama, manioc,alte rădăcinoase",null,null,null,null,null,null,null,null,null,null,null,null,null,null,null,null,null,null,null,null,null,null,null,null,null,null,null,null,1101.45,null,null,null,null,null,null,null,null,null,0]
["B_1_6_1",null,null,null,null,null,null,null,null,"Tutun",null,null,null,null,null,null,null,null,null,null,null,null,null,null,null,null,null,null,null,null,null,null,null,null,null,null,null,null,1696.83,null,null,null,null,null,null,null,null,null,{"$f":"AE417*AM417","v":0}]
["B_1_6_2",null,null,null,null,null,null,null,null,"Hamei",null,null,null,null,null,null,null,null,null,null,null,null,null,null,null,null,null,null,null,null,null,null,null,null,null,null,null,null,4105.24,null,null,null,null,null,null,null,null,null,0]
["B_1_6_4",null,null,null,null,null,null,null,null,"Rapiţă",null,null,null,null,null,null,null,null,null,null,null,null,null,null,null,null,null,null,null,null,null,null,null,null,null,null,null,null,647.72,null,null,null,null,null,null,null,null,null,0]
["B_1_6_5",null,null,null,null,null,null,null,null,"Floarea soarelui",null,null,null,null,null,null,null,null,null,null,null,null,null,null,null,null,null,null,null,null,null,null,null,null,null,null,null,null,564.52,null,null,null,null,null,null,null,null,null,{"$f":"AE420*AM420","v":0}]
["B_1_6_6",null,null,null,null,null,null,null,null,"Soia",null,null,null,null,null,null,null,null,null,null,null,null,null,null,null,null,null,null,null,null,null,null,null,null,null,null,null,null,611,null,null,null,null,null,null,null,null,null,0]
["B_1_6_7",null,null,null,null,null,null,null,null,"In pentru ulei",null,null,null,null,null,null,null,null,null,null,null,null,null,null,null,null,null,null,null,null,null,null,null,null,null,null,null,null,1563.56,null,null,null,null,null,null,null,null,null,0]
["B_1_6_8",null,null,null,null,null,null,null,null,"Alte plante pentru ulei: ricin, şofrănaş, susan, arahide, mac, muştar, alte culturi oleaginoase",null,null,null,null,null,null,null,null,null,null,null,null,null,null,null,null,null,null,null,null,null,null,null,null,null,null,null,null,374,null,null,null,null,null,null,null,null,null,0]
["B_1_6_9",null,null,null,null,null,null,null,null,"In textil",null,null,null,null,null,null,null,null,null,null,null,null,null,null,null,null,null,null,null,null,null,null,null,null,null,null,null,null,307.17,null,null,null,null,null,null,null,null,null,{"$f":"AE424*AM424","v":0}]
["B_1_6_10",null,null,null,null,null,null,null,null,"Cânepă",null,null,null,null,null,null,null,null,null,null,null,null,null,null,null,null,null,null,null,null,null,null,null,null,null,null,null,null,518.11,null,null,null,null,null,null,null,null,null,0]
["B_1_6_11",null,null,null,null,null,null,null,null,"Plante medicinale şi aromatice inclusiv ceaiul, cafeaua şi cicoarea pentru cafea: muşeţel, mătrăguna, menta, mac, angelica,chimen, genţiana, iasomia, lavanda, levănţica, origanul, şofranul, salvia, valeriana, gălbeneaua, etc.",null,null,null,null,null,null,null,null,null,null,null,null,null,null,null,null,null,null,null,null,null,null,null,null,null,null,null,null,937.85,null,null,null,null,null,null,null,null,null,0]
["B_1_6_12",null,null,null,null,null,null,null,null,"Alte plante industriale: cicoarea, trestia de zahăr, alte plante tehnice nemenţionate în altă parte, sorgul tehnic (pentru mături)",null,null,null,null,null,null,null,null,null,null,null,null,null,null,null,null,null,null,null,null,null,null,null,null,null,null,null,null,717.56,null,null,null,null,null,null,null,null,null,{"$f":"AE427*AM427","v":0}]
["B_1_6_99",null,null,null,null,null,null,null,null,"Alte plante industriale: cicoarea, trestia de zahăr, alte plante tehnice nemenţionate în altă parte, sorgul tehnic (pentru mături)",null,null,null,null,null,null,null,null,null,null,null,null,null,null,null,null,null,null,null,null,null,null,null,null,null,null,null,null,816.04,null,null,null,null,null,null,null,null,null,0]
["B_1_7_1_1",null,null,null,null,null,null,null,null,"Legume proaspete, pepeni şi căpşuni - în câmp-",null,null,null,null,null,null,null,null,null,null,null,null,null,null,null,null,null,null,null,null,null,null,null,null,null,null,null,null,6196.49,null,null,null,null,null,null,null,null,null,{"$f":"AE429*AM429","v":0}]
[null,null,null,null,null,null,null,null,null,"-varza, conopida, brocolii, sparanhgel",null,null,null,null,null,null,null,null,null,null,null,null,null,null,null,null,null,null,null,null,null,null,null,null,null,null,null,null,null,null,null,null,null,null,null,null,null,null,{"$f":"AE430*AM429","v":0}]
[null,null,null,null,null,null,null,null,null,"legume pentru frunze (praz, salata, spanac, etc)",null,null,null,null,null,null,null,null,null,null,null,null,null,null,null,null,null,null,null,null,null,null,null,null,null,null,null,null,null,null,null,null,null,null,null,null,null,null,{"$f":"AE431*AM429","v":0}]
[null,null,null,null,null,null,null,null,null,"tomate",null,null,null,null,null,null,null,null,null,null,null,null,null,null,null,null,null,null,null,null,null,null,null,null,null,null,null,null,null,null,null,null,null,null,null,null,null,null,{"$f":"AE432*AM429","v":0}]
[null,null,null,null,null,null,null,null,null,"porumb dulce",null,null,null,null,null,null,null,null,null,null,null,null,null,null,null,null,null,null,null,null,null,null,null,null,null,null,null,null,null,null,null,null,null,null,null,null,null,null,{"$f":"AE433*AM429","v":0}]
[null,null,null,null,null,null,null,null,null,"legume cultivate pentru fructe- vinete, ardei, dovleci si dovlecei, castraveciori",null,null,null,null,null,null,null,null,null,null,null,null,null,null,null,null,null,null,null,null,null,null,null,null,null,null,null,null,null,null,null,null,null,null,null,null,null,null,{"$f":"AE434*AM429","v":0}]
[null,null,null,null,null,null,null,null,null,"- legume cultivate pentru rădăcină, bulbi, tuberculi (excepţie cartofi) - morcovi, păstârnac, ceapă, usturoi, ridichii, napi,",null,null,null,null,null,null,null,null,null,null,null,null,null,null,null,null,null,null,null,null,null,null,null,null,null,null,null,null,null,null,null,null,null,null,null,null,null,null,{"$f":"AE435*AM429","v":0}]
[null,null,null,null,null,null,null,null,null,"legume pastai (fasole, mazare cu exceptia lintei si a nautlui)",null,null,null,null,null,null,null,null,null,null,null,null,null,null,null,null,null,null,null,null,null,null,null,null,null,null,null,null,null,null,null,null,null,null,null,null,null,null,{"$f":"AE436*AM429","v":0}]
[null,null,null,null,null,null,null,null,null,"fructele plantelor neperene: căpşuni, pepeni galbeni, pepeni verzi, ananas.",null,null,null,null,null,null,null,null,null,null,null,null,null,null,null,null,null,null,null,null,null,null,null,null,null,null,null,null,null,null,null,null,null,null,null,null,null,null,{"$f":"AE437*AM429","v":0}]
["B_1_7_1_2",null,null,null,null,null,null,null,null,"Legume proaspete, pepeni si capsuni - in gradina destinate comercializarii",null,null,null,null,null,null,null,null,null,null,null,null,null,null,null,null,null,null,null,null,null,null,null,null,null,null,null,null,7176.16,null,null,null,null,null,null,null,null,null,{"$f":"AE438*AM438","v":0}]
[null,null,null,null,null,null,null,null,null,"-varza, conopida, brocolii, sparanhgel",null,null,null,null,null,null,null,null,null,null,null,null,null,null,null,null,null,null,null,null,null,null,null,null,null,null,null,null,null,null,null,null,null,null,null,null,null,null,{"$f":"AE439*AM438","v":0}]
[null,null,null,null,null,null,null,null,null,"legume pentru frunze (praz, salata, spanac, etc)",null,null,null,null,null,null,null,null,null,null,null,null,null,null,null,null,null,null,null,null,null,null,null,null,null,null,null,null,null,null,null,null,null,null,null,null,null,null,{"$f":"AE440*AM438","v":0}]
[null,null,null,null,null,null,null,null,null,"tomate",null,null,null,null,null,null,null,null,null,null,null,null,null,null,null,null,null,null,null,null,null,null,null,null,null,null,null,null,null,null,null,null,null,null,null,null,null,null,{"$f":"AE441*AM438","v":0}]
[null,null,null,null,null,null,null,null,null,"porumb dulce",null,null,null,null,null,null,null,null,null,null,null,null,null,null,null,null,null,null,null,null,null,null,null,null,null,null,null,null,null,null,null,null,null,null,null,null,null,null,{"$f":"AE442*AM438","v":0}]
[null,null,null,null,null,null,null,null,null,"legume cultivate pentru fructe- vinete, ardei, dovleci si dovlecei, castraveciori",null,null,null,null,null,null,null,null,null,null,null,null,null,null,null,null,null,null,null,null,null,null,null,null,null,null,null,null,null,null,null,null,null,null,null,null,null,null,{"$f":"AE443*AM438","v":0}]
[null,null,null,null,null,null,null,null,null,"- legume cultivate pentru rădăcină, bulbi, tuberculi (excepţie cartofi) - morcovi, păstârnac, ceapă, usturoi, ridichii, napi,",null,null,null,null,null,null,null,null,null,null,null,null,null,null,null,null,null,null,null,null,null,null,null,null,null,null,null,null,null,null,null,null,null,null,null,null,null,null,{"$f":"AE444*AM438","v":0}]
[null,null,null,null,null,null,null,null,null,"legume pastai (fasole, mazare cu exceptia lintei si a nautlui)",null,null,null,null,null,null,null,null,null,null,null,null,null,null,null,null,null,null,null,null,null,null,null,null,null,null,null,null,null,null,null,null,null,null,null,null,null,null,{"$f":"AE445*AM438","v":0}]
[null,null,null,null,null,null,null,null,null,"fructele plantelor neperene: căpşuni, pepeni galbeni, pepeni verzi, ananas.",null,null,null,null,null,null,null,null,null,null,null,null,null,null,null,null,null,null,null,null,null,null,null,null,null,null,null,null,null,null,null,null,null,null,null,null,null,null,{"$f":"AE446*AM438","v":0}]
["B_1_7_2",null,null,null,null,null,null,null,null,"Legume proaspete, pepeni si capsuni - in sere si solarii",null,null,null,null,null,null,null,null,null,null,null,null,null,null,null,null,null,null,null,null,null,null,null,null,null,null,null,null,27507.66,null,null,null,null,null,null,null,null,null,{"$f":"AE447*AM447","v":0}]
[null,null,null,null,null,null,null,null,null,"-varza, conopida, brocolii, sparanhgel",null,null,null,null,null,null,null,null,null,null,null,null,null,null,null,null,null,null,null,null,null,null,null,null,null,null,null,null,null,null,null,null,null,null,null,null,null,null,{"$f":"AE448*AM447","v":0}]
[null,null,null,null,null,null,null,null,null,"legume pentru frunze (praz, salata, spanac, etc)",null,null,null,null,null,null,null,null,null,null,null,null,null,null,null,null,null,null,null,null,null,null,null,null,null,null,null,null,null,null,null,null,null,null,null,null,null,null,{"$f":"AE449*AM447","v":0}]
[null,null,null,null,null,null,null,null,null,"tomate",null,null,null,null,null,null,null,null,null,null,null,null,null,null,null,null,null,null,null,null,null,null,null,null,null,null,null,null,null,null,null,null,null,null,null,null,null,null,{"$f":"AE450*AM447","v":0}]
[null,null,null,null,null,null,null,null,null,"porumb dulce",null,null,null,null,null,null,null,null,null,null,null,null,null,null,null,null,null,null,null,null,null,null,null,null,null,null,null,null,null,null,null,null,null,null,null,null,null,null,{"$f":"AE451*AM447","v":0}]
[null,null,null,null,null,null,null,null,null,"legume cultivate pentru fructe- vinete, ardei, dovleci si dovlecei, castraveciori",null,null,null,null,null,null,null,null,null,null,null,null,null,null,null,null,null,null,null,null,null,null,null,null,null,null,null,null,null,null,null,null,null,null,null,null,null,null,{"$f":"AE452*AM447","v":0}]
[null,null,null,null,null,null,null,null,null,"- legume cultivate pentru rădăcină, bulbi, tuberculi (excepţie cartofi) - morcovi, păstârnac, ceapă, usturoi, ridichii, napi,",null,null,null,null,null,null,null,null,null,null,null,null,null,null,null,null,null,null,null,null,null,null,null,null,null,null,null,null,null,null,null,null,null,null,null,null,null,null,{"$f":"AE453*AM447","v":0}]
[null,null,null,null,null,null,null,null,null,"legume pastai (fasole, mazare cu exceptia lintei si a nautlui)",null,null,null,null,null,null,null,null,null,null,null,null,null,null,null,null,null,null,null,null,null,null,null,null,null,null,null,null,null,null,null,null,null,null,null,null,null,null,{"$f":"AE454*AM447","v":0}]
[null,null,null,null,null,null,null,null,null," fructele plantelor neperene: căpşuni, pepeni galbeni, pepeni verzi, ananas.",null,null,null,null,null,null,null,null,null,null,null,null,null,null,null,null,null,null,null,null,null,null,null,null,null,null,null,null,null,null,null,null,null,null,null,null,null,null,{"$f":"AE455*AM447","v":0}]
["B_1_8_1",null,null,null,null,null,null,null,null,"Flori în câmp:",null,null,null,null,null,null,null,null,null,null,null,null,null,null,null,null,null,null,null,null,null,null,null,null,null,null,null,null,25527.46,null,null,null,null,null,null,null,null,null,"-"]
[null,null,null,null,null,null,null,null,null,"bulbi de flori, cormi si tuberculi",null,null,null,null,null,null,null,null,null,null,null,null,null,null,null,null,null,null,null,null,null,null,null,null,null,null,null,null,null,null,null,null,null,null,null,null,null,null,{"$f":"AE457*AM456","v":0}]
[null,null,null,null,null,null,null,null,null,"flori taiate si boboci",null,null,null,null,null,null,null,null,null,null,null,null,null,null,null,null,null,null,null,null,null,null,null,null,null,null,null,null,null,null,null,null,null,null,null,null,null,null,{"$f":"AE458*AM456","v":0}]
[null,null,null,null,null,null,null,null,null," plante cu flori şi plante ornamentale",null,null,null,null,null,null,null,null,null,null,null,null,null,null,null,null,null,null,null,null,null,null,null,null,null,null,null,null,null,null,null,null,null,null,null,null,null,null,{"$f":"AE459*AM456","v":0}]
["B_1_8_2",null,null,null,null,null,null,null,null,"Flori - în sere și solarii:",null,null,null,null,null,null,null,null,null,null,null,null,null,null,null,null,null,null,null,null,null,null,null,null,null,null,null,null,83743.81,null,null,null,null,null,null,null,null,null,"-"]
[null,null,null,null,null,null,null,null,null,"bulbi de flori, cormi, tuberculi,",null,null,null,null,null,null,null,null,null,null,null,null,null,null,null,null,null,null,null,null,null,null,null,null,null,null,null,null,null,null,null,null,null,null,null,null,null,null,{"$f":"AE461*AM460","v":0}]
[null,null,null,null,null,null,null,null,null,"flori tăiate şi boboci,",null,null,null,null,null,null,null,null,null,null,null,null,null,null,null,null,null,null,null,null,null,null,null,null,null,null,null,null,null,null,null,null,null,null,null,null,null,null,{"$f":"AE462*AM460","v":0}]
[null,null,null,null,null,null,null,null,null,"plante cu flori şi plante ornamentale",null,null,null,null,null,null,null,null,null,null,null,null,null,null,null,null,null,null,null,null,null,null,null,null,null,null,null,null,null,null,null,null,null,null,null,null,null,null,{"$f":"AE463*AM460","v":0}]
["B_1_9_1",null,null,null,null,null,null,null,null,"Plante de nutreț - Iarba temporară: iarba semănată pe terenuri arabile cedate producţiilor furajere erbacee pe o perioadă mai scurtă de 5 ani şi chiar sub un an",null,null,null,null,null,null,null,null,null,null,null,null,null,null,null,null,null,null,null,null,null,null,null,null,null,null,null,null,266.22000000000003,null,null,null,null,null,null,null,null,null,{"$f":"AE464*AM464","v":0}]
["B_1_9_2_1",null,null,null,null,null,null,null,null,"Plante de nutreț - alte furaje verzi - Porumb siloz",null,null,null,null,null,null,null,null,null,null,null,null,null,null,null,null,null,null,null,null,null,null,null,null,null,null,null,null,1029.19,null,null,null,null,null,null,null,null,null,0]
["B_1_9_2_2",null,null,null,null,null,null,null,null,"Plante de nutreț - Alte furaje verzi: culturi anuale de cereale recoltate verzi, sorgul anual, anumite graminee anuale cum sunt firuţa, cruciferele, faceea dacă sunt recoltate verzi şi nu au fost menţionate în altă parte, mazariche, lupin dulce",null,null,null,null,null,null,null,null,null,null,null,null,null,null,null,null,null,null,null,null,null,null,null,null,null,null,null,null,476.13,null,null,null,null,null,null,null,null,null,0]
["B_1_9_2_99",null,null,null,null,null,null,null,null,"Alte plante de nutreț: diferite specii de trifoi anual sau peren (trifoi alb, trifoi roşu, trifoi de Alexandria), diferite varietăţi de lucernă.",null,null,null,null,null,null,null,null,null,null,null,null,null,null,null,null,null,null,null,null,null,null,null,null,null,null,null,null,662.78,null,null,null,null,null,null,null,null,null,0]
["B_1_10",null,null,null,null,null,null,null,null,"Seminţe şi seminceri:",null,null,null,null,null,null,null,null,null,null,null,null,null,null,null,null,null,null,null,null,null,null,null,null,null,null,null,null,2993.73,null,null,null,null,null,null,null,null,null,"-"]
[null,null,null,null,null,null,null,null,null,"semințe de graminee",null,null,null,null,null,null,null,null,null,null,null,null,null,null,null,null,null,null,null,null,null,null,null,null,null,null,null,null,null,null,null,null,null,null,null,null,null,null,{"$f":"AE469*AM468","v":0}]
[null,null,null,null,null,null,null,null,null,"seminţe pentru horticultură",null,null,null,null,null,null,null,null,null,null,null,null,null,null,null,null,null,null,null,null,null,null,null,null,null,null,null,null,null,null,null,null,null,null,null,null,null,null,{"$f":"AE470*AM468","v":0}]
[null,null,null,null,null,null,null,null,null," seminţe şi răsaduri pentru teren arabil cu excepţia cerealelor, a boabelor de leguminoase uscate, a cartofilor, a plantelor oleaginoase.",null,null,null,null,null,null,null,null,null,null,null,null,null,null,null,null,null,null,null,null,null,null,null,null,null,null,null,null,null,null,null,null,null,null,null,null,null,null,{"$f":"AE471*AM468","v":0}]
["B_11",null,null,null,null,null,null,null,null,"Alte plante: culturi de mică importanţă economică care nu pot fi încadrate în altă categorie",null,null,null,null,null,null,null,null,null,null,null,null,null,null,null,null,null,null,null,null,null,null,null,null,null,null,null,null,592.99,null,null,null,null,null,null,null,null,null,{"$f":"AE472*AM472","v":0}]
["B_3_1",null,null,null,null,null,null,null,null,"Păşuni și fânețe permanente - pășuni și fânețe",null,null,null,null,null,null,null,null,null,null,null,null,null,null,null,null,null,null,null,null,null,null,null,null,null,null,null,null,295.04000000000002,null,null,null,null,null,null,null,null,null,0]
["B_3_2",null,null,null,null,null,null,null,null,"Păşuni și fânețe permanente - pe terenuri accidentate - păşuni sărace, inclusiv lăstărişul, de obicei nefertilizate şi neîntrebuinţate – păşuni cu randament scăzut situate în locuri accidentate şi la altitudini mari, care nu sunt cosite – terenuri stâncoase, terenuri mlăştinoase, bărăganuri",null,null,null,null,null,null,null,null,null,null,null,null,null,null,null,null,null,null,null,null,null,null,null,null,null,null,null,null,92.33,null,null,null,null,null,null,null,null,null,0]
["B_4_1_1_1",null,null,null,null,null,null,null,null,"Fructe, pomi și arbuști - climă temperată",null,null,null,null,null,null,null,null,null,null,null,null,null,null,null,null,null,null,null,null,null,null,null,null,null,null,null,null,2812.04,null,null,null,null,null,null,null,null,null,"-"]
[null,null,null,null,null,null,null,null,null,"Mere",null,null,null,null,null,null,null,null,null,null,null,null,null,null,null,null,null,null,null,null,null,null,null,null,null,null,null,null,null,null,null,null,null,null,null,null,null,null,{"$f":"AE476*AM475","v":0}]
[null,null,null,null,null,null,null,null,null,"Pere",null,null,null,null,null,null,null,null,null,null,null,null,null,null,null,null,null,null,null,null,null,null,null,null,null,null,null,null,null,null,null,null,null,null,null,null,null,null,{"$f":"AE477*AM475","v":0}]
[null,null,null,null,null,null,null,null,null,"Piersici și nectarine",null,null,null,null,null,null,null,null,null,null,null,null,null,null,null,null,null,null,null,null,null,null,null,null,null,null,null,null,null,null,null,null,null,null,null,null,null,null,{"$f":"AE478*AM475","v":0}]
[null,null,null,null,null,null,null,null,null,"Alte fructe: visine, cirese, caise, prune, gutui.",null,null,null,null,null,null,null,null,null,null,null,null,null,null,null,null,null,null,null,null,null,null,null,null,null,null,null,null,null,null,null,null,null,null,null,null,null,null,{"$f":"AE479*AM475","v":0}]
["B_4_1_2",null,null,null,null,null,null,null,null,"Livezi de coacăz , smochin, zmeur, muri, agrise, catina, afin, goji.",null,null,null,null,null,null,null,null,null,null,null,null,null,null,null,null,null,null,null,null,null,null,null,null,null,null,null,null,3958.34,null,null,null,null,null,null,null,null,null,{"$f":"AE480*AM480","v":0}]
["B_4_1_3",null,null,null,null,null,null,null,null,"Fructe, pomi și arbuști- nuci, alune",null,null,null,null,null,null,null,null,null,null,null,null,null,null,null,null,null,null,null,null,null,null,null,null,null,null,null,null,1754.4,null,null,null,null,null,null,null,null,null,0]
["B_4_4_1",null,null,null,null,null,null,null,null,"Vii - vin nobil",null,null,null,null,null,null,null,null,null,null,null,null,null,null,null,null,null,null,null,null,null,null,null,null,null,null,null,null,1981.83,null,null,null,null,null,null,null,null,null,0]
["B_4_4_2",null,null,null,null,null,null,null,null,"Vii - alte vinuri",null,null,null,null,null,null,null,null,null,null,null,null,null,null,null,null,null,null,null,null,null,null,null,null,null,null,null,null,1889.96,null,null,null,null,null,null,null,null,null,0]
["B_4_4_3",null,null,null,null,null,null,null,null,"Vii – struguri de masă",null,null,null,null,null,null,null,null,null,null,null,null,null,null,null,null,null,null,null,null,null,null,null,null,null,null,null,null,2170.52,null,null,null,null,null,null,null,null,null,0]
["B_4_5",null,null,null,null,null,null,null,null,"Pepiniere",null,null,null,null,null,null,null,null,null,null,null,null,null,null,null,null,null,null,null,null,null,null,null,null,null,null,null,null,5614.25,null,null,null,null,null,null,null,null,null,0]
["B_4_6",null,null,null,null,null,null,null,null,"Alte culturi permanente: răchita, papura, bambus, salcie, brazi de craciun",null,null,null,null,null,null,null,null,null,null,null,null,null,null,null,null,null,null,null,null,null,null,null,null,null,null,null,null,487.35,null,null,null,null,null,null,null,null,null,0]
["B_6_1",null,null,null,null,null,null,null,null,"Ciupercării pe 100mp (Nr. recolte pe an - 4)\n",null,null,null,null,null,null,null,null,null,null,null,null,null,null,null,null,null,null,null,null,0,null,null,null,null,null,null,null,4456.78,null,null,null,null,null,null,null,null,null,{"$f":"AE487*AM487/4","v":0}]
[null,null,null,null,null,null,null,null,null,"TOTAL VEGETAL",null,null,null,null,null,null,null,null,null,null,null,null,null,null,null,null,null,null,null,null,null,null,null,null,null,null,null,null,null,null,null,null,null,null,null,null,null,null,{"$f":"SUM(AW404:BI487)","v":0}]
[]
["Coduri EUROSTAT",null,null,null,null,null,null,null,null,"Denumire specii animale",null,null,null,null,null,null,null,null,null,null,null,null,null,null,null,null,null,null,null,null,"Număr\ncapete",null,null,null,null,null,null,null,"SO 2013           euro/cap",null,null,null,null,null,null,null,null,null,"SO"]
[0,null,null,null,null,null,null,null,null,1,null,null,null,null,null,null,null,null,null,null,null,null,null,null,null,null,null,null,null,null,2,null,null,null,null,null,null,null,3,null,null,null,null,null,null,null,null,null,4]
["C_1",null,null,null,null,null,null,null,null,"Ecvidee",null,null,null,null,null,null,null,null,null,null,null,null,null,null,null,null,null,null,null,null,null,null,null,null,null,null,null,null,1404.31,null,null,null,null,null,null,null,null,null,{"$f":"AE492*AM492","v":0}]
["C_2_1",null,null,null,null,null,null,null,null,"Bovine sub 1 an - total",null,null,null,null,null,null,null,null,null,null,null,null,null,null,null,null,null,null,null,null,null,null,null,null,null,null,null,null,216.38,null,null,null,null,null,null,null,null,null,0]
["C_2_2",null,null,null,null,null,null,null,null,"Bovine sub 2 ani - masculi",null,null,null,null,null,null,null,null,null,null,null,null,null,null,null,null,null,null,null,null,null,null,null,null,null,null,null,null,344.4,null,null,null,null,null,null,null,null,null,0]
["C_2_3",null,null,null,null,null,null,null,null,"Bovine sub 2 ani - femele",null,null,null,null,null,null,null,null,null,null,null,null,null,null,null,null,null,null,null,null,null,null,null,null,null,null,null,null,341.49,null,null,null,null,null,null,null,null,null,0]
["C_2_4",null,null,null,null,null,null,null,null,"Bovine de 2 ani şi peste - masculi",null,null,null,null,null,null,null,null,null,null,null,null,null,null,null,null,null,null,null,null,null,null,null,null,null,null,null,null,817.88,null,null,null,null,null,null,null,null,null,0]
["C_2_5",null,null,null,null,null,null,null,null,"Bovine de 2 ani si peste - femele (juninci pentru îngrăşat, juninci pentru reproducţie)",null,null,null,null,null,null,null,null,null,null,null,null,null,null,null,null,null,null,null,null,null,null,null,null,null,null,null,null,801.38,null,null,null,null,null,null,null,null,null,0]
["C_2_6",null,null,null,null,null,null,null,null,"Vaci, bivolite pentru lapte",null,null,null,null,null,null,null,null,null,null,null,null,null,null,null,null,null,null,null,null,null,null,null,null,null,null,null,null,1200.46,null,null,null,null,null,null,null,null,null,0]
["C_2_99",null,null,null,null,null,null,null,null,"Bovine de 2 ani şi peste - alte vaci",null,null,null,null,null,null,null,null,null,null,null,null,null,null,null,null,null,null,null,null,null,null,null,null,null,null,null,null,515.85,null,null,null,null,null,null,null,null,null,0]
["C_3_1_1",null,null,null,null,null,null,null,null,"Oi - mioare montate - oi de un an sau mai mult, destinate reproducerii, oile reformate care urmează să fete",null,null,null,null,null,null,null,null,null,null,null,null,null,null,null,null,null,null,null,null,null,null,null,null,null,null,null,null,54.91,null,null,null,null,null,null,null,null,null,{"$f":"AE500*AM500","v":0}]
["C_3_1_99",null,null,null,null,null,null,null,null,"Oi-alte oi : miei, berbeci, oi reformate - oi sterpe care urmează a fi îngrăşate în vederea sacrificării",null,null,null,null,null,null,null,null,null,null,null,null,null,null,null,null,null,null,null,null,null,null,null,null,null,null,null,null,26.72,null,null,null,null,null,null,null,null,null,0]
["C_3_2_1",null,null,null,null,null,null,null,null,"Capre – capre montate - capre montate femele destinate reproducerii, capre re reformate care urmează să fete",null,null,null,null,null,null,null,null,null,null,null,null,null,null,null,null,null,null,null,null,null,null,null,null,null,null,null,null,112.98,null,null,null,null,null,null,null,null,null,0]
["C_3_2_99",null,null,null,null,null,null,null,null,"Capre – alte capre: iezi, ţapi, capre reformate destinate sacrificării",null,null,null,null,null,null,null,null,null,null,null,null,null,null,null,null,null,null,null,null,null,null,null,null,null,null,null,null,39.67,null,null,null,null,null,null,null,null,null,0]
["C_4_1_1",null,null,null,null,null,null,null,null,"Porcine - tineret porcin sub 20 kg",null,null,null,null,null,null,null,null,null,null,null,null,null,null,null,null,null,null,null,null,null,null,null,null,null,null,null,null,33.36,null,null,null,null,null,null,null,null,null,0]
["C_4_1_2",null,null,null,null,null,null,null,null,"Porcine - scroafe pentru reproducţie peste 50 kg",null,null,null,null,null,null,null,null,null,null,null,null,null,null,null,null,null,null,null,null,null,null,null,null,null,null,null,null,262.55,null,null,null,null,null,null,null,null,null,0]
["C_4_1_99",null,null,null,null,null,null,null,null,"Porcine - alte porcine: porci la îngrăşat, vieri, scroafe destinate sacrificării",null,null,null,null,null,null,null,null,null,null,null,null,null,null,null,null,null,null,null,null,null,null,null,null,null,null,null,null,388.08,null,null,null,null,null,null,null,null,null,0]
["C_5_1",null,null,null,null,null,null,null,null,"Pui pentru carne *",null,null,null,null,null,null,null,null,null,null,null,null,null,null,null,null,null,null,null,null,null,null,null,null,null,null,null,null,473.59,null,null,null,null,null,null,null,null,null,0]
["C_5_2",null,null,null,null,null,null,null,null,"Găini ouătoare *",null,null,null,null,null,null,null,null,null,null,null,null,null,null,null,null,null,null,null,null,null,null,null,null,null,null,null,null,2156,null,null,null,null,null,null,null,null,null,0]
["C_5_3_1",null,null,null,null,null,null,null,null,"Curcani şi curci",null,null,null,null,null,null,null,null,null,null,null,null,null,null,null,null,null,null,null,null,null,null,null,null,null,null,null,null,4205.5600000000004,null,null,null,null,null,null,null,null,null,0]
["C_5_3_2",null,null,null,null,null,null,null,null,"- raţe",null,null,null,null,null,null,null,null,null,null,null,null,null,null,null,null,null,null,null,null,null,null,null,null,null,null,null,null,2824.99,null,null,null,null,null,null,null,null,null,0]
["C_5_3_3",null,null,null,null,null,null,null,null,"- gâşte",null,null,null,null,null,null,null,null,null,null,null,null,null,null,null,null,null,null,null,null,null,null,null,null,null,null,null,null,3602.66,null,null,null,null,null,null,null,null,null,0]
["C_5_3_4",null,null,null,null,null,null,null,null,"- struţi",null,null,null,null,null,null,null,null,null,null,null,null,null,null,null,null,null,null,null,null,null,null,null,null,null,null,null,null,30083.5,null,null,null,null,null,null,null,null,null,0]
["C_5_3_99",null,null,null,null,null,null,null,null,"- alte păsări: bibilici, porumbei, potârnichi, fazani, prepeliţe",null,null,null,null,null,null,null,null,null,null,null,null,null,null,null,null,null,null,null,null,null,null,null,null,null,null,null,null,900.34,null,null,null,null,null,null,null,null,null,0]
["C_6",null,null,null,null,null,null,null,null,"Iepuri (femele iepuri)",null,null,null,null,null,null,null,null,null,null,null,null,null,null,null,null,null,null,null,null,null,null,null,null,null,null,null,null,13.91,null,null,null,null,null,null,null,null,null,0]
["C_7",null,null,null,null,null,null,null,null,"Familii de albine",null,null,null,null,null,null,null,null,null,null,null,null,null,null,null,null,null,null,null,null,null,null,null,null,null,null,null,null,59.62,null,null,null,null,null,null,null,null,null,0]
[null,null,null,null,null,null,null,null,null,"TOTAL zootehnic",null,null,null,null,null,null,null,null,null,null,null,null,null,null,null,null,null,null,null,null,null,null,null,null,null,null,null,null,null,null,null,null,null,null,null,null,null,null,{"$f":"SUM(AW492:BI515)","v":0}]
[null,null,null,null,null,null,null,null,null,"TOTAL GENERAL",null,null,null,null,null,null,null,null,null,null,null,null,null,null,null,null,null,null,null,null,null,null,null,null,null,null,null,null,null,null,null,null,null,null,null,null,null,null,{"$f":"AW488+AW516","v":0}]
[]
["Valoare sprijin:*",null,null,null,null,null,null,null,null,null,{"$f":" IF(AND((AW517>=4000), (AW517<=11999)),\"15.000,00 EURO\",\"neeligibil\")","v":"neeligibil"}]
[]
["Curs EURO la data întocmirii Planului de Afaceri:",null,null,null,null,null,null,null,null,null,null,null,null,null,null,null,null,null,null,null,null,null,null,null,null,null,null,null,null,null,null,null,null,"Data întocmire Plan de Afaceri:"]
[]
["1) Valoarea SO se referă la 100 capete \nExploatația de păsări care își desfășoară activitate pe mai multe cicluri de producție într-un an contabil se va dimensiona la depunerea cererii de finanțare cu efectivul de păsări existent.\n 2) Categoriile de bovine includ și categoriile corespunzătoare de bivoli și bivolițe\n 3) Cabalinele luate in calcul nu sunt destinate consumului uman, ci deservesc munca în exploataţie   \n 4)În cazul exploataţiilor de creștere a bovinelor:\nBovinele pentru carne sunt cele destinate sacrificării: bovine sub un an, bovine sub 2 ani (femele și masculi), bovine de doi ani și peste (femele și masculi), alte bovine (tauri, boi, alte bovine reformate destinate sacrificării).\nBovinele sub un an se iau în calculul dimensiunii economice, astfel:\n-dacă în cadrul exploatației se găsesc vaci de lapte, atunci calculul dimensiunii economice se face prin însumarea producților standard pentru vaci de lapte și a producțiilor standard pentru vițeii sub un an al căror număr depășește numărul vacilor de lapte\n-dacă în cadrul exploatației nu se găsesc vaci de lapte, atunci calculul dimensiunii economice se face prin însumarea producțiilor standard pentru vițeii sub un an al căror număr există la acel moment în cadrul exploatației\n 5)În cazul exploataţiilor de creștere a ovinelor / caprinelor:\nNumărul de miei/iezi se ia în calculul dimensiunii economice numai dacă în cadrul exploatației nu sunt oi, respectiv capre pentru reproducție  . \n 6) În cazul exploataţiilor de creștere a porcinelor:\nNumărul de porcine sub 20 kg se ia în calculul dimensiunii economice numai dacă în cadrul exploatației nu sunt scroafe de reproducție.\n 7)Valoarea SO este calculată pe stup.\n 8)Legislația care a stat la baza stabilirii coeficienților de calcul se regăsește la cap. 4.5 - Legislația europeană și națională aplicabilă din Ghidul solicitantului aferent Sub-măsurii 6.3."]
[]
[]
[]
[]
[]
[]
[]
[]
[]
["F. DECLARAŢIE PE PROPRIA RĂSPUNDERE A SOLICITANTULUI"]
["Prin această declaraţie solicitantul"]
[]
["cunoscând prevederile Codului Penal privind la falsul în declaraţii, care solicită asistenţă financiară nerambursabilă prin Programul FEADR pentru proiectul Sub-măsurii 6.3, intitulat"]
[]
[]
[]
[]
[null,null,null,"1. Declar pe propria răspundere că îndeplinesc condiţiile de eligibilitate privind acordarea sprijinului prevăzut în Fişa Tehnică a Sub-măsurii 6.3, Anexa nr.1 la Ghidul Solicitantului şi mă angajez să le respect pe o perioadă egală cu perioada de implementare şi monitorizare a proiectelor începând cu anul depunerii cererii de finanţare."]
[null,null,null,"2. Declar pe propria răspundere că toate informaţiile din Cererea de Finanţare şi din documentele anexate acesteia sunt corecte şi mă angajez să respect condiţiile cerute în reglementările referitoare la prezentul program şi pe cele legate de proiectul anexat şi să furnizez periodic, la cerere, documente justificative necesare."]
[null,null,null,"3. Declar pe propria răspundere că orice modificări aduse dreptului de proprietate sau de folosinţă vor fi notificate  AFIR  în termen de trei zile calendaristice de la data încheierii documentelor respective. "]
[null,null,null,"4. Declar pe propria răspundere că mă angajez ca pe perioada de valabilitate a Deciziei de finanţare de 6/ 8 ani (pentru sectorul pomicol) să nu reduc  suprafaţa exploataţiei din anul 0 şi din anul ţinta, cuprinsă în proiect."]
[null,null,null,"5. Declar pe propria răspundere că mă angajez ca pe perioada de valabilitate a Deciziei de finanţare, perioadă egală cu perioada de implementare şi monitorizare a proiectelor începând cu anul depunerii cererii de finanţare, să nu reduc suprafaţa exploataţiei din anul 0 şi din anul ţintă, cuprinsă în proiect."]
[null,null,null,"6. Declar că nu sunt într-unul din următoarele cazuri:"]
[null,null,null,"a. Acuzat din cauza unei greseli privind conduită profesională având ca soluţie finală res judicata (împotriva căreia niciun apel nu este posibil)."]
[null,null,null,"b. Vinovat de grave deficienţe de conduită profesională dovedite prin orice mijloace pe care Agenţia le poate justifica. "]
[null,null,null,"c. Vinovat de faptul că nu am prezentat informaţiile cerute de Autoritatea Contractantă ca o condiţie de participare la contractare."]
[null,null,null,"d. Nerespectarea prevederilor contractuale prin care nu mi-am îndeplinit obligaţiile contractuale în legatură cu un alt Contract/ Decizie de Finanţare încheiat cu AFIR sau alte contracte finanţate din fonduri europene."]
[null,null,null,"e. Încalcarea de a obţine informaţii confidenţiale sau de influenţare a AFIR în timpul procesului de evaluare a proiectului şi nu voi face presiuni la adresa evaluatorului."]
[null,null,null,"7. Declar pe propria răspundere că mă angajez că toate obiectivele prevăzute în Planul de Afaceri să fie realizate cu respectarea prevederilor legislatiei naţionale şi europene în vigoare şi după caz, să obţin autorizaţiile necesare implementării proiectului până la verificarea îndeplinirii Planului de Afaceri la tranşa a doua de plată."]
[null,null,null,"8. Declar pe propria răspundere că mă angajez că voi respecta pe toată perioadă de valabilitate a Deciziei de Finanţare  condiţiile de implementare, iar dacă se constată că nu mai sunt indeplinite obiectivele din Planul de Afaceri, Autoritatea Contractanta poate proceda, după caz, fie la recuperarea integrală a ajutorului financiar nerambursabil plătit şi la încetarea de drept a Deciziei de finantare, fie la recuperarea parţială, respectiv proporţional cu obiectivele nerealizate din Planul de afaceri afectate de neregulă."]
[null,null,null,"9. Declaraţia pe propria răspundere că mă angajez că voi menţine criteriul de selecţie privind soiurile autohtone pe toată perioada de valabilitate a deciziei de finanţare, perioadă egală cu perioada de implementare şi monitorizare a proiectelor începând cu anul depunerii cererii de finanţare."]
[null,null,null,"10. Declaraţia pe propria răspundere că mă angajez că voi îndeplini criteriul de selecţie privind  soiurile autohtone până la momentul depunerii celei de a doua tranşe de sprijin, pentru dezvoltarea exploataţiei cu astfel de soiuri."]
[null,null,null,"11. Declar pe propria răspundere că mă angajez că voi menţine criteriul de selecţie privind rasele autohtone pe toată perioada de valabilitate a deciziei de finanţare, perioadă egală cu perioada de implementare şi monitorizare a proiectelor începând cu anul depunerii cererii de finanţare."]
[null,null,null,"12. Declar pe propria răspundere că mă angajez că voi îndeplini criteriul de selecţie privind rasele autohtone până la momentul depunerii celei de a doua tranşe de sprijin, pentru dezvoltarea exploataţiei cu astfel de specii.  "]
[null,null,null,"13. Declar pe propria răspundere că nu am înscrisuri care privesc sancțiuni economico-financiare în cazierul judiciar pe care mă oblig să îl depun la încheierea contractului de finanţare . Prin prezenta îmi exprim consimțământul ca AFIR să solicite instituțiilor abilitate conform legii, extrasul de pe cazierul judiciar privind situația mea.\n(Până la reglementarea posibilităţii aplicării de către experţii evaluatori AFIR a normelor metodologice aferente Legii nr. 290/2004 privind cazierul judiciar, cu modificările şi completările ulterioare, solicitantul are obligaţia depunerii documentului justificativ mai sus enunţat.)  "]
[null,null,null,"14.  Declar pe propria răspunderii că în cazul în care, exploataţia zootehnică pe care o deţin va fi selectată şi primeşte sprijin financiar nerambursabil, să o înregistrez la ANSVSA, ca exploataţie comercială de tip A, până la data semnării Deciziei de Finanţare."]
[null,null,null,"15. Declar pe propria răspundere că în cazul în care voi fi încadrat într-o activitate salarizată ulterior termenului de maxim 9 luni de la data semnării Deciziei de finanţare, locul de muncă deţinut va fi în acelaşi UAT sau în zona limitrofă a UAT-ului în care este înregistrată exploataţia agricolă şi voi notifica AFIR cu privire la locul de muncă, în termen de 10 zile calendaristice de la data angajării."]
[null,null,null,"16. Sunt de acord ca AFIR să consulte şi să prelucreze, prin operaţiunile prevăzute de legislaţia în vigoare în vederea desfăşurării activităţii specifice, datele mele cu caracter personal, furnizate AFIR. "]
[]
["Semnătura reprezentant legal ",null,null,null,null,null,null,null,null,null,null,null,null,null,null,null,null,null,null,null,null,null,null,null,null,null,null,null,null,null,null,null,null,null,null,null,null,null,null,null,null," Data:"]
[]
[]
[]
["Anexa INDICATORI DE MONITORIZARE"]
["Masura M19/2B/1- Sprijinirea tinerilor fermieri si a fermelor mici\nB- Sprijinirea  fermelor mici"]
[]
["1. Cod CAEN"]
["2. Tipul beneficiarului",null,null,null,null,null,null,null,null,null,null,null,null,null,null,null,null,"Solicitanți înființați în baza OUG 44/ 2008",null,null,null,null,null,null,null,null,null,null,null,null,"Bărbaţi",null,null,null,null,null,null,null,null,null,null,"< 40"]
[null,null,null,null,null,null,null,null,null,null,null,null,null,null,null,null,null,null,null,null,null,null,null,null,null,null,null,null,null,null,null,null,null,null,null,null,null,null,null,null,null,">= 40"]
[null,null,null,null,null,null,null,null,null,null,null,null,null,null,null,null,null,null,null,null,null,null,null,null,null,null,null,null,null,null,"Femei",null,null,null,null,null,null,null,null,null,null,"< 40"]
[null,null,null,null,null,null,null,null,null,null,null,null,null,null,null,null,null,null,null,null,null,null,null,null,null,null,null,null,null,null,null,null,null,null,null,null,null,null,null,null,null,">= 40"]
[null,null,null,null,null,null,null,null,null,null,null,null,null,null,null,null,null,"Persoană juridică"]
["3. Tipul de zonă",null,null,null,null,null,null,null,null,null,null,null,null,null,null,null,null,"Zonă normală"]
[null,null,null,null,null,null,null,null,null,null,null,null,null,null,null,null,null,"Zonă montană"]
[null,null,null,null,null,null,null,null,null,null,null,null,null,null,null,null,null,"Zonă constrângeri specifice"]
[null,null,null,null,null,null,null,null,null,null,null,null,null,null,null,null,null,"Zonă constrângeri semnificative"]
["4. Tipul producţiei",null,null,null,null,null,null,null,null,null,null,null,null,null,null,null,null,"Ecologică"]
[null,null,null,null,null,null,null,null,null,null,null,null,null,null,null,null,null,"Convenţională"]
["5. Suprafaţa exploataţiei agricole sprijinite (Ha)"]
["6. Dimensiunea economică a exploataţiei(intre 4.000 și 11.999 Euro - valoare Producţie Standard)"]
[null,null,null,null,null,null,null,null,null,null,null,null,null,null,null,null,null,"Culturi de câmp"]
[null,null,null,null,null,null,null,null,null,null,null,null,null,null,null,null,null,"Horticultură"]
[null,null,null,null,null,null,null,null,null,null,null,null,null,null,null,null,null,"Viticultură"]
[null,null,null,null,null,null,null,null,null,null,null,null,null,null,null,null,null,"Culturi permanente (altele decât viticultura)"]
["7. Tip ramură agricolă",null,null,null,null,null,null,null,null,null,null,null,null,null,null,null,null,"Creștere bovine pentru carne"]
[null,null,null,null,null,null,null,null,null,null,null,null,null,null,null,null,null,"Creștere bovine pentru lapte"]
[null,null,null,null,null,null,null,null,null,null,null,null,null,null,null,null,null,"Creștere ovine și caprine"]
[null,null,null,null,null,null,null,null,null,null,null,null,null,null,null,null,null,"Porcine"]
[null,null,null,null,null,null,null,null,null,null,null,null,null,null,null,null,null,"Păsări de curte"]
[null,null,null,null,null,null,null,null,null,null,null,null,null,null,null,null,null,"Mixte - culturi mixte"]
[null,null,null,null,null,null,null,null,null,null,null,null,null,null,null,null,null,"Mixte - animale mixte"]
[null,null,null,null,null,null,null,null,null,null,null,null,null,null,null,null,null,"Mixte - culturi și animale cu excepția albinelor"]
[null,null,null,null,null,null,null,null,null,null,null,null,null,null,null,null,null,"Albine"]
[null,null,null,null,null,null,null,null,null,null,null,null,null,null,null,null,null,"Altele"]
["8. Contribuie la Prioritatea 1",null,null,null,null,null,null,null,null,null,null,null,null,null,null,null,null,"M01 - Transfer de cunoştinţe şi acţiuni de informare"]
[null,null,null,null,null,null,null,null,null,null,null,null,null,null,null,null,null,"M02 - Servicii de consiliere"]
[null,null,null,null,null,null,null,null,null,null,null,null,null,null,null,null,null,"M16 - Cooperare"]
["Indic. nr. 1 - reprezintă codul CAEN pentru investiţia vizată prin proiect\nIndic. nr. 2, 3, 4, 7 - se va bifa doar o singură categorie/ categoria majoritară\nIndic. nr. 5 - se completează suprafaţa (Ha) exploataţiei agricole sprijinite prin proiect\nIndic. nr. 6 - se va completa dimensiunea economică a exploatatiei\nIndic. nr. 8 - se va completa din momentul demarării M01, M02, respectiv M16, cu bifa în dreptul măsurii corespunzătoare, dacă va fi cazul"]
[]
[null,"REGULI DE COMPLETARE"]
[null,"Trebuie bifate şi anexate toate documentele (1 şi 5) de pe coloana “DEPUNERE - Obligatoriu pentru toate proiectele” din secţiunea D  - Lista documentelor anexate.\n \nSe vor completa celulele albe din tabelul privind stabilirea categoriei de ferma cu suprafetele/numărul de capete aferent culturii/speciei, iar calculul valorii producţiei standard (SO) se va efectua automat.\n \nSe va completa Declaraţia pe propria raspundere a solicitantului cu datele solicitate (denumire/nume prenume solicitant,  titlul proiectului). \n \nCâmpurile Nivel de studii şi denumirea instituţiei care a emis documentul se va completa cu: competentele şi aptitudinile profesionale îndeplinite. \n \nPentru indicatorii de tip numeric care nu fac obiectul investitiei se va completa valoarea zero."]

{"sheet":"Anexa 3","index":1,"n_rows":80,"n_cols":52,"rows_kept":80,"cut":false,"hidden":false,"merged":[[46,0,46,60],[47,0,47,60],[48,0,48,60],[49,0,49,60],[50,0,50,3],[50,4,50,41],[3,7,3,41],[3,42,3,50],[3,51,3,60],[4,7,4,60],[5,0,5,60],[6,0,6,60],[14,0,14,3],[14,4,14,41],[14,42,14,50],[14,51,14,60],[15,0,15,3],[15,4,15,41],[15,42,15,50],[15,51,15,60],[12,0,12,3],[12,4,12,41],[12,42,12,50],[12,51,12,60],[1,7,1,41],[1,42,2,60],[2,7,2,41],[10,0,10,3],[10,4,10,41],[10,42,10,50],[10,51,10,60],[11,0,11,3],[11,4,11,41],[11,42,11,50],[11,51,11,60],[7,0,7,60],[8,0,8,60],[9,0,9,3],[9,4,9,41],[9,42,9,50],[9,51,9,60],[13,0,13,3],[13,4,13,41],[13,42,13,50],[13,51,13,60],[18,0,18,3],[18,4,18,41],[18,42,18,50],[18,51,18,60],[19,0,19,3],[19,4,19,41],[19,42,19,50],[19,51,19,60],[16,0,16,3],[16,4,16,41],[16,42,16,50],[16,51,16,60],[17,0,17,3],[17,4,17,41],[17,42,17,50],[17,51,17,60],[22,0,22,60],[23,0,23,3],[23,4,23,41],[23,42,23,50],[23,51,23,60],[24,0,24,60],[20,0,20,41],[20,42,20,60],[21,0,21,3],[21,4,21,41],[21,42,21,50],[21,51,21,60],[27,0,27,3],[27,4,27,41],[27,42,27,50],[27,51,27,60],[28,0,28,3],[28,4,28,41],[28,42,28,50],[28,51,28,60],[25,0,25,3],[25,4,25,41],[25,42,25,50],[25,51,25,60],[26,0,26,3],[26,4,26,41],[26,42,26,50],[26,51,26,60],[31,0,31,3],[31,4,31,41],[31,42,31,50],[31,51,31,60],[32,0,32,3],[32,4,32,41],[32,42,32,50],[32,51,32,60],[29,0,29,3],[29,4,29,41],[29,42,29,50],[29,51,29,60],[30,0,30,3],[30,4,30,41],[30,42,30,50],[30,51,30,60],[35,0,35,3],[35,4,35,41],[35,42,35,50],[35,51,35,60],[36,0,36,3],[36,4,36,41],[36,42,36,50],[36,51,36,60],[33,0,33,3],[33,4,33,41],[33,42,33,50],[33,51,33,60],[34,0,34,3],[34,4,34,41],[34,42,34,50],[34,51,34,60],[42,7,42,41],[42,42,43,60],[43,7,43,41],[44,7,44,41],[44,42,44,50],[44,51,44,60],[45,7,45,60],[37,0,37,3],[37,4,37,41],[37,42,37,50],[37,51,37,60],[38,0,38,3],[38,4,38,41],[38,42,38,60],[52,0,52,3],[52,4,52,41],[52,42,52,50],[52,51,52,60],[53,0,53,3],[53,4,53,41],[53,42,53,50],[53,51,53,60],[50,42,50,50],[50,51,50,60],[51,0,51,3],[51,4,51,41],[51,42,51,50],[51,51,51,60],[56,0,56,3],[56,4,56,41],[56,42,56,50],[56,51,56,60],[57,0,57,3],[57,4,57,41],[57,42,57,50],[57,51,57,60],[54,0,54,3],[54,4,54,41],[54,42,54,50],[54,51,54,60],[55,0,55,3],[55,4,55,41],[55,42,55,50],[55,51,55,60],[60,0,60,3],[60,4,60,41],[60,42,60,50],[60,51,60,60],[61,0,61,41],[61,42,61,60],[58,0,58,3],[58,4,58,41],[58,42,58,50],[58,51,58,60],[59,0,59,3],[59,4,59,41],[59,42,59,50],[59,51,59,60],[62,0,62,3],[62,4,62,41],[62,42,62,50],[62,51,62,60],[63,0,63,60],[64,0,64,3],[64,4,64,41],[64,42,64,50],[64,51,64,60],[65,0,65,60],[66,0,66,3],[66,4,66,41],[66,42,66,50],[66,51,66,60],[67,0,67,3],[67,4,67,41],[67,42,67,50],[67,51,67,60],[70,0,70,3],[70,4,70,41],[70,42,70,50],[70,51,70,60],[71,0,71,3],[71,4,71,41],[71,42,71,50],[71,51,71,60],[68,0,68,3],[68,4,68,41],[68,42,68,50],[68,51,68,60],[69,0,69,3],[69,4,69,41],[69,42,69,50],[69,51,69,60],[74,0,74,3],[74,4,74,41],[74,42,74,50],[74,51,74,60],[75,0,75,3],[75,4,75,41],[75,42,75,50],[75,51,75,60],[72,0,72,3],[72,4,72,41],[72,42,72,50],[72,51,72,60],[73,0,73,3],[73,4,73,41],[73,42,73,50],[73,51,73,60],[78,0,78,3],[78,4,78,41],[78,42,78,50],[78,51,78,60],[79,0,79,3],[79,4,79,41],[79,42,79,60],[76,0,76,3],[76,4,76,41],[76,42,76,50],[76,51,76,60],[77,0,77,3],[77,4,77,41],[77,42,77,50],[77,51,77,60]]}
[]
[null,null,null,null,null,null,null,"MINISTERUL AGRICULTURII ŞI DEZVOLTĂRII RURALE",null,null,null,null,null,null,null,null,null,null,null,null,null,null,null,null,null,null,null,null,null,null,null,null,null,null,null,null,null,null,null,null,null,null,"Anexa A3"]
[]
[null,null,null,null,null,null,null,"AGENŢIA PENTRU FINANŢAREA INVESTIŢIILOR RURALE",null,null,null,null,null,null,null,null,null,null,null,null,null,null,null,null,null,null,null,null,null,null,null,null,null,null,null,null,null,null,null,null,null,null,null,null,null,null,null,null,null,null,null,"Nr.2"]
[]
[]
[]
["(Titlu deviz)"]
["Deviz capitolul 2- Cheltuieli pentru asigurarea utilităţilor necesare obiectivului - EURO"]
["Nr.crt",null,null,null,"Specificaţie",null,null,null,null,null,null,null,null,null,null,null,null,null,null,null,null,null,null,null,null,null,null,null,null,null,null,null,null,null,null,null,null,null,null,null,null,null,"Valoare eligibilă",null,null,null,null,null,null,null,null,"Valoare\nneeligibilă"]
[1,null,null,null,"Alimentare cu apă"]
[2,null,null,null,"Canalizare"]
[3,null,null,null,"Alimentare cu gaze naturale"]
[4,null,null,null,"Alimentare cu agent termic"]
[5,null,null,null,"Alimentare cu energie electrică"]
[6,null,null,null,"Telecomunicaţii (telefonie, radio-tv,etc)"]
[7,null,null,null,"Alte tipuri de reţele exterioare"]
[8,null,null,null,"Drumuri de acces"]
[null,null,null,null,"Total valoare fără TVA",null,null,null,null,null,null,null,null,null,null,null,null,null,null,null,null,null,null,null,null,null,null,null,null,null,null,null,null,null,null,null,null,null,null,null,null,null,{"$f":"SUM(AQ11:AY18)","v":0},null,null,null,null,null,null,null,null,{"$f":"SUM(AZ11:BI18)","v":0}]
[null,null,null,null,"Valoare TVA aferentă cheltuielilor eligibile şi neeligibile"]
["TOTAL DEVIZ CAPITOLUL 2 (inclusiv TVA)",null,null,null,null,null,null,null,null,null,null,null,null,null,null,null,null,null,null,null,null,null,null,null,null,null,null,null,null,null,null,null,null,null,null,null,null,null,null,null,null,null,{"$f":"AQ19+AZ19+AQ20+AZ20","v":0}]
[]
[" Deviz capitolul 5 - Alte cheltuieli - EURO"]
["Nr.crt",null,null,null,"Specificaţie",null,null,null,null,null,null,null,null,null,null,null,null,null,null,null,null,null,null,null,null,null,null,null,null,null,null,null,null,null,null,null,null,null,null,null,null,null,"Valoare eligibilă",null,null,null,null,null,null,null,null,"Valoare\nneeligibilă"]
[]
["5.1 ",null,null,null,"Organizare de şantier",null,null,null,null,null,null,null,null,null,null,null,null,null,null,null,null,null,null,null,null,null,null,null,null,null,null,null,null,null,null,null,null,null,null,null,null,null,{"$f":"SUM(AQ27:AY28)","v":0},null,null,null,null,null,null,null,null,{"$f":"SUM(AZ27:BI28)","v":0}]
["5.1.1",null,null,null,"lucrări de construcţii şi instalaţii aferente organizării de şantier"]
["5.1.2",null,null,null,"cheltuieli conexe organizării de şantier"]
["5.2",null,null,null,"Comisioane, taxe",null,null,null,null,null,null,null,null,null,null,null,null,null,null,null,null,null,null,null,null,null,null,null,null,null,null,null,null,null,null,null,null,null,null,null,null,null,{"$f":"SUM(AQ31:AY34)","v":0},null,null,null,null,null,null,null,null,{"$f":"SUM(AZ30:BI36)","v":0}]
[null,null,null,null,"comisionul băncii finanţatoare"]
[null,null,null,null,"cota aferentă Inspectoratului de Stat în Construcţii pentru controlul calităţii lucrărilor de construcţii"]
[null,null,null,null,"cota pentru controlul statului în amenajarea teritoriului, urbanism şi pentru autorizarea lucrărilor de construcţii"]
[null,null,null,null,"prime de asigurare din sarcina autorităţii contractante"]
[null,null,null,null,"alte cheltuieli de aceeaşi natură, stabilite în condiţiile legii"]
[null,null,null,null,"cota aferentă Casei Sociale a Constructorilor"]
["5.3",null,null,null," Cheltuieli diverse si neprevazute"]
[null,null,null,null,"TOTAL DEVIZ CAPITOLUL 5",null,null,null,null,null,null,null,null,null,null,null,null,null,null,null,null,null,null,null,null,null,null,null,null,null,null,null,null,null,null,null,null,null,null,null,null,null,{"$f":"AQ26+AQ29","v":0},null,null,null,null,null,null,null,null,{"$f":"AZ26+AZ29+AZ36","v":0}]
[null,null,null,null,"VALOARE TVA aferentă cheltuielilor eligibile şi neeligibile"]
[null,null,null,null,"TOTAL DEVIZ CAPITOLUL 5 ( inclusiv TVA)",null,null,null,null,null,null,null,null,null,null,null,null,null,null,null,null,null,null,null,null,null,null,null,null,null,null,null,null,null,null,null,null,null,null,null,null,null,{"$f":"AQ37+AZ37+AQ38+AZ38","v":0}]
[]
[]
[]
[null,null,null,null,null,null,null,"MINISTERUL AGRICULTURII ŞI DEZVOLTĂRII RURALE",null,null,null,null,null,null,null,null,null,null,null,null,null,null,null,null,null,null,null,null,null,null,null,null,null,null,null,null,null,null,null,null,null,null,"Anexa A3"]
[]
[null,null,null,null,null,null,null,"AGENŢIA PENTRU FINANŢAREA INVESTIŢIILOR RURALE",null,null,null,null,null,null,null,null,null,null,null,null,null,null,null,null,null,null,null,null,null,null,null,null,null,null,null,null,null,null,null,null,null,null,null,null,null,null,null,null,null,null,null,"Nr.3"]
[]
[]
[]
["(Titlu deviz)"]
["Deviz capitolul 2- Cheltuieli pentru asigurarea utilităţilor necesare obiectivului - EURO"]
["Nr.crt",null,null,null,"Specificaţie",null,null,null,null,null,null,null,null,null,null,null,null,null,null,null,null,null,null,null,null,null,null,null,null,null,null,null,null,null,null,null,null,null,null,null,null,null,"Valoare eligibilă",null,null,null,null,null,null,null,null,"Valoare\nneeligibilă"]
[1,null,null,null,"Alimentare cu apă"]
[2,null,null,null,"Canalizare"]
[3,null,null,null,"Alimentare cu gaze naturale"]
[4,null,null,null,"Alimentare cu agent termic"]
[5,null,null,null,"Alimentare cu energie electrică"]
[6,null,null,null,"Telecomunicaţii (telefonie, radio-tv,etc)"]
[7,null,null,null,"Alte tipuri de reţele exterioare"]
[8,null,null,null,"Drumuri de acces"]
[null,null,null,null,"Total valoare fără TVA",null,null,null,null,null,null,null,null,null,null,null,null,null,null,null,null,null,null,null,null,null,null,null,null,null,null,null,null,null,null,null,null,null,null,null,null,null,{"$f":"SUM(AQ52:AY59)","v":0},null,null,null,null,null,null,null,null,{"$f":"SUM(AZ52:BI59)","v":0}]
[null,null,null,null,"Valoare TVA aferentă cheltuielilor eligibile şi neeligibile"]
["TOTAL DEVIZ CAPITOLUL 2 (inclusiv TVA)",null,null,null,null,null,null,null,null,null,null,null,null,null,null,null,null,null,null,null,null,null,null,null,null,null,null,null,null,null,null,null,null,null,null,null,null,null,null,null,null,null,{"$f":"AQ60+AZ60+AQ61+AZ61","v":0}]
[]
[" Deviz capitolul 5 - Alte cheltuieli - EURO"]
["Nr.crt",null,null,null,"Specificaţie",null,null,null,null,null,null,null,null,null,null,null,null,null,null,null,null,null,null,null,null,null,null,null,null,null,null,null,null,null,null,null,null,null,null,null,null,null,"Valoare eligibilă",null,null,null,null,null,null,null,null,"Valoare\nneeligibilă"]
[]
["5.1 ",null,null,null,"Organizare de şantier",null,null,null,null,null,null,null,null,null,null,null,null,null,null,null,null,null,null,null,null,null,null,null,null,null,null,null,null,null,null,null,null,null,null,null,null,null,{"$f":"SUM(AQ68:AY69)","v":0},null,null,null,null,null,null,null,null,{"$f":"SUM(AZ68:BI69)","v":0}]
["5.1.1",null,null,null,"lucrări de construcţii şi instalaţii aferente organizării de şantier"]
["5.1.2",null,null,null,"cheltuieli conexe organizării de şantier"]
["5.2",null,null,null,"Comisioane, taxe",null,null,null,null,null,null,null,null,null,null,null,null,null,null,null,null,null,null,null,null,null,null,null,null,null,null,null,null,null,null,null,null,null,null,null,null,null,{"$f":"SUM(AQ72:AY75)","v":0},null,null,null,null,null,null,null,null,{"$f":"SUM(AZ71:BI77)","v":0}]
[null,null,null,null,"comisionul băncii finanţatoare"]
[null,null,null,null,"cota aferentă Inspectoratului de Stat în Construcţii pentru controlul calităţii lucrărilor de construcţii"]
[null,null,null,null,"cota pentru controlul statului în amenajarea teritoriului, urbanism şi pentru autorizarea lucrărilor de construcţii"]
[null,null,null,null,"prime de asigurare din sarcina autorităţii contractante"]
[null,null,null,null,"alte cheltuieli de aceeaşi natură, stabilite în condiţiile legii"]
[null,null,null,null,"cota aferentă Casei Sociale a Constructorilor"]
["5.3",null,null,null," Cheltuieli diverse si neprevazute"]
[null,null,null,null,"TOTAL DEVIZ CAPITOLUL 5",null,null,null,null,null,null,null,null,null,null,null,null,null,null,null,null,null,null,null,null,null,null,null,null,null,null,null,null,null,null,null,null,null,null,null,null,null,{"$f":"AQ67+AQ70","v":0},null,null,null,null,null,null,null,null,{"$f":"AZ67+AZ70+AZ77","v":0}]
[null,null,null,null,"VALOARE TVA aferentă cheltuielilor eligibile şi neeligibile"]
[null,null,null,null,"TOTAL DEVIZ CAPITOLUL 5 ( inclusiv TVA)",null,null,null,null,null,null,null,null,null,null,null,null,null,null,null,null,null,null,null,null,null,null,null,null,null,null,null,null,null,null,null,null,null,null,null,null,null,{"$f":"AQ78+AZ78+AQ79+AZ79","v":0}]

{"sheet":"A8-Detalii privind terenul ","index":2,"n_rows":22,"n_cols":44,"rows_kept":22,"cut":false,"hidden":false,"merged":[[13,2,13,58],[14,1,14,14],[14,16,14,34],[14,36,14,58],[15,1,15,14],[15,16,15,34],[15,36,15,58],[22,1,22,24],[22,43,22,58],[17,3,17,14],[17,16,17,21],[17,23,17,29],[17,32,17,40],[18,3,18,14],[18,16,18,21],[18,23,18,29],[22,26,22,41],[8,1,8,58],[9,1,9,24],[9,26,9,41],[9,43,9,58],[10,1,10,24],[10,26,10,41],[10,43,10,58],[7,3,7,49],[4,1,4,14],[5,3,5,14],[5,16,5,21],[5,23,5,29],[5,32,5,40],[5,43,5,50],[6,3,6,14],[6,16,6,21],[6,23,6,29],[6,32,6,40],[6,43,6,50],[1,2,1,58],[2,1,2,14],[2,16,2,34],[2,36,2,58],[3,1,3,14],[3,16,3,34],[3,36,3,58],[16,1,16,14],[20,1,20,58],[21,1,21,24],[21,26,21,41],[21,43,21,58],[17,43,17,50],[18,32,18,40],[18,43,18,50],[19,3,19,49]]}
[]
[null,null,"A8 DETALII PRIVIND TERENUL EXPLOATAŢIEI CARE STĂ LA BAZA CALCULULUI SO:"]
[null,"Judeţ",null,null,null,null,null,null,null,null,null,null,null,null,null,null,"Comună",null,null,null,null,null,null,null,null,null,null,null,null,null,null,null,null,null,null,null,"Sat"]
[]
[null,"Modalităţi deţinere"]
[null,null,null,"Moştenire / Donaţie",null,null,null,null,null,null,null,null,null,null,null,null,null,null,null,null,null,null,null,"Blocul fizic",null,null,null,null,null,null,null," ","Parcela",null,null,null,null,null,null,null,null,null,null,"Tarlaua"]
[null,null,null,"Achiziţie"]
[null,null,null,"Arendă / Concesiune/ Comodat / Închiriere/ Dare temporă în administrare sau folosinţă"]
[null,"Persoana care a dat moştenirea/donaţia/vânzător/arendator/concedent/comodant/locator / Persoana care a dat temporar în administrare sau folosință"]
[null,"Nume si prenume / Denumire",null,null,null,null,null,null,null,null,null,null,null,null,null,null,null,null,null,null,null,null,null,null,null,null,"Cod unic înregistrare/Cod numeric personal",null,null,null,null,null,null,null,null,null,null,null,null,null,null,null,null,"Act identitate (serie/număr) cetăţeni străini"]
[]
[]
[]
[null,null,"A8 DETALII PRIVIND TERENUL EXPLOATAŢIEI CARE STĂ LA BAZA CALCULULUI SO:"]
[null,"Judeţ",null,null,null,null,null,null,null,null,null,null,null,null,null,null,"Comună",null,null,null,null,null,null,null,null,null,null,null,null,null,null,null,null,null,null,null,"Sat"]
[]
[null,"Modalităţi deţinere"]
[null,null,null,"Moştenire / Donaţie",null,null,null,null,null,null,null,null,null,null,null,null,null,null,null,null,null,null,null,"Blocul fizic",null,null,null,null,null,null,null," ","Parcela",null,null,null,null,null,null,null,null,null,null,"Tarlaua"]
[null,null,null,"Achiziţie"]
[null,null,null,"Arendă / Concesiune/ Comodat / Închiriere/ Dare temporă în administrare sau folosinţă"]
[null,"Persoana care a dat moştenirea/donaţia/vânzător/arendator/concedent/comodant/locator / Persoana care a dat temporar în administrare sau folosință"]
[null,"Nume si prenume / Denumire",null,null,null,null,null,null,null,null,null,null,null,null,null,null,null,null,null,null,null,null,null,null,null,null,"Cod unic înregistrare/Cod numeric personal",null,null,null,null,null,null,null,null,null,null,null,null,null,null,null,null,"Act identitate (serie/număr) cetăţeni străini"]

{"sheet":"Asociati","index":3,"n_rows":24,"n_cols":52,"rows_kept":24,"cut":false,"hidden":false,"merged":[[6,3,6,16],[6,24,6,49],[5,3,5,10],[5,24,5,49],[1,2,1,14],[3,3,3,16],[3,17,3,49],[9,28,9,35],[9,37,9,48],[9,51,9,58],[10,4,10,6],[10,7,10,9],[10,10,10,15],[10,18,11,20],[10,21,11,26],[10,28,11,35],[10,37,11,48],[9,4,9,15],[9,18,9,20],[9,21,9,26],[10,51,11,58],[11,4,11,6],[11,7,11,9],[23,51,24,58],[24,4,24,6],[24,7,24,9],[24,10,24,15],[22,28,22,35],[22,37,22,48],[22,51,22,58],[23,4,23,6],[23,7,23,9],[23,10,23,15],[23,18,24,20],[23,21,24,26],[23,28,24,35],[22,21,22,26],[23,37,24,48],[22,4,22,15],[22,18,22,20],[11,10,11,15],[16,3,16,16],[16,17,16,49],[18,3,18,10],[18,24,18,49],[19,3,19,16],[19,24,19,49]]}
[]
[null,null,"Asociaţi"]
[]
[null,null,null,"Nume si prenume asociat"]
[]
[null,null,null,"Data naşterii",null,null,null,null,null,null,null,null,null,null,null,null,null,null,null,null,null,null,null,null,"Cod numeric personal"]
[]
[]
[]
[null,null,null,null,"Act de identitate",null,null,null,null,null,null,null,null,null,null,null,null,null,"Seria",null,null,"Nr.",null,null,null,null,null,null,"Eliberat la data de",null,null,null,null,null,null,null,null,"de:",null,null,null,null,null,null,null,null,null,null,null,null,null,"Valabil până la:"]
[null,null,null,null,"B.I.",null,null,"C.I.",null,null,"Paşaport"]
[]
[]
[]
[]
[]
[null,null,null,"Nume si prenume asociat"]
[]
[null,null,null,"Data naşterii",null,null,null,null,null,null,null,null,null,null,null,null,null,null,null,null,null,null,null,null,"Cod numeric personal"]
[]
[]
[]
[null,null,null,null,"Act de identitate",null,null,null,null,null,null,null,null,null,null,null,null,null,"Seria",null,null,"Nr.",null,null,null,null,null,null,"Eliberat la data de",null,null,null,null,null,null,null,null,"de:",null,null,null,null,null,null,null,null,null,null,null,null,null,"Valabil până la:"]
[null,null,null,null,"B.I.",null,null,"C.I.",null,null,"Paşaport"]